Workbook

Sheet LISTES (hidden)
C7: CHAMPIONNAT DE France | E7: 2020 | G7: MASCULIN | H7: ABS | I7: 1 | J7: 0.00069444 | O7: 12 | P7: 0.5 | S7: 12h
C8: SERIE 1 - 2500 | E8: 2021 | G8: FEMININ | H8: 1 | I8: 2 | J8: =J7*I8 -> 0.00138888 | O8: =O7/2 -> 6 | P8: =P7/2 -> 0.25 | S8: 6h
C9: SERIE 1 - 2000 | E9: 2022 | G9: MIXTE | H9: 2 | I9: 3 | J9: 0.00069444 | O9: =O8/2 -> 3 | P9: 0.125 | S9: 3h
C10: SERIE 1 - 1500 | E10: 2023 | H10: 3 | I10: 4 | J10: =J9*I10 -> 0.00277776 | O10: 1 | P10: =P9/3 -> 0.04166666667 | S10: 1h
C11: SERIE 2 - 1000 | E11: 2024 | H11: 4 | I11: 5 | J11: 0.00069444 | O11: 0.5 | P11: =P10/2 -> 0.02083333333 | S11: 30mn
C12: SERIE 2 - 750 | H12: 5 | I12: 6 | J12: =J11*I12 -> 0.00416664 | O12: =O9/2 -> 1.5 | P12: =P9/2 -> 0.0625 | S12: 1,30 h
C13: SERIE 2 - 500 | H13: 6 | I13: 7 | J13: 0.00069444 | O13: =O12/2 -> 0.75 | P13: 0.03125 | S13: 45mn
C14: SERIE 2 - 250 | H14: 7 | I14: 8 | J14: =J13*I14 -> 0.00555552 | O14: =O13/2 -> 0.375 | P14: 0.015625 | S14: 22mn
C15: SERIE 3 - 150 | H15: 8 | I15: 9 | J15: 0.00069444 | P15: =P10/60 -> 0.0006944444444 | S15: 1mn
C16: SERIE 3 - 100 | H16: 9 | I16: 10 | J16: =J15*I16 -> 0.0069444 | P16: =P15*50 -> 0.03472222222 | S16: 50mn
H17: 10 | I17: 11 | J17: 0.00069444
H18: 11 | I18: 12 | J18: =J17*I18 -> 0.00833328
H19: 12 | I19: 13 | J19: 0.00069444
H20: 13 | I20: 14 | J20: =J19*I20 -> 0.00972216
H21: 14 | I21: 15 | J21: 0.00069444
H22: 15 | I22: 16 | J22: =J21*I22 -> 0.01111104
H23: 16 | I23: 17 | J23: 0.00069444
H24: 17 | I24: 18 | J24: =J23*I24 -> 0.01249992
H25: 18 | I25: 19 | J25: 0.00069444
H26: 19 | I26: 20 | J26: =J25*I26 -> 0.0138888
H27: 20 | I27: 21 | J27: 0.00069444
H28: 21 | I28: 22 | J28: =J27*I28 -> 0.01527768
H29: 22 | I29: 23 | J29: 0.00069444
H30: 23 | I30: 24 | J30: =J29*I30 -> 0.01666656
H31: 24 | I31: 25 | J31: 0.00069444
H32: 25 | I32: 26 | J32: =J31*I32 -> 0.01805544
H33: 26 | I33: 27 | J33: 0.00069444
H34: 27 | I34: 28 | J34: =J33*I34 -> 0.01944432
H35: 28 | I35: 29 | J35: 0.00069444
H36: 29 | I36: 30 | J36: =J35*I36 -> 0.0208332
H37: 30 | I37: 31 | J37: 0.00069444
H38: 31 | I38: 32 | J38: =J37*I38 -> 0.02222208
H39: 32 | I39: 33 | J39: 0.00069444
I40: 34 | J40: =J39*I40 -> 0.02361096
I41: 35 | J41: 0.00069444
I42: 36 | J42: =J41*I42 -> 0.02499984
I43: 37 | J43: 0.00069444
I44: 38 | J44: =J43*I44 -> 0.02638872
I45: 39 | J45: 0.00069444
I46: 40 | J46: =J45*I46 -> 0.0277776
I47: 41 | J47: 0.00069444
I48: 42 | J48: =J47*I48 -> 0.02916648
I49: 43 | J49: 0.00069444
I50: 44 | J50: =J49*I50 -> 0.03055536
I51: 45 | J51: 0.00069444
I52: 46 | J52: =J51*I52 -> 0.03194424
I53: 47 | J53: 0.00069444
I54: 48 | J54: =J53*I54 -> 0.03333312
I55: 49 | J55: 0.00069444
I56: 50 | J56: =J55*I56 -> 0.034722
I57: 51 | J57: 0.00069444
I58: 52 | J58: =J57*I58 -> 0.03611088
I59: 53 | J59: 0.00069444
I60: 54 | J60: =J59*I60 -> 0.03749976
I61: 55 | J61: 0.00069444
I62: 56 | J62: =J61*I62 -> 0.03888864
I63: 57 | J63: 0.00069444
I64: 58 | J64: =J63*I64 -> 0.04027752
I65: 59 | J65: 0.00069444
I66: 60 | J66: =J65*I66 -> 0.0416664

Sheet LISTE ENGAGES
C1: =IF(R3<>"",R3,Q3) -> APPELATION TOURNOI | H1: =IF(R10="",Q10,R10) -> ORGANISATEUR
R2: IDENTITE DU TOURNOI
Q3: APPELATION TOURNOI
C4: =IF(R4<>"",R4,Q4) -> LIEU | G4: =IF(R6="","DATE",CONCATENATE(R7,"-",R8,"/",R6)) -> DATE | H4: =IF(R9="",Q9,R9) -> GENRE | Q4: LIEU
C5: =IF(R5<>"",R5,Q5) -> TYPE | Q5: TYPE
C6: LISTE EQUIPES ENGAGEES | Q6: ANNEE
Q7: DATE DEBUT
A8: N° | C8: NOM | D8: PRENOM | E8: LICENCE | F8: CLUB | G8: NOM | H8: PRENOM | I8: LICENCE | J8: CLUB | K8: pts | L8: tir | Q8: DATE FIN
A9: 1 | Q9: GENRE
A10: 2 | Q10: ORGANISATEUR
A11: 3
A12: 4 | O12: 1- Commencez par renseigner le tableau ci-dessus "identité du tournoi"
A13: 5 | O13: 2- Copiez-collez la liste des équipes engagées dans les champs ci-contre en respectant :
A14: 6 | O14: - nom et premon séparés pour chaque joueur ( à défaut, ne mentionez que le nom)
A15: 7 | O15: - l'ordre décroissant des têtes de séries
A16: 8 | O16: 3- Renseignez l'onglet "EMARG…." selon l'avancée dans les tableaux
A17: 9 | O17: 4-Renseignez les scores des rencontres dans l'onglet " SCORE…" en fonction de l'avancée du tableau
A18: 10 | O18: Les onglets "TAB…" s'actualisent automatiquement, il n'y a rien à saisir.
A19: 11 | O19: 5- Renseignez l'onglet "RELEVE" à l'issue de la compétition
A20: 12
A21: 13
A22: 14
A23: 15
A24: 16
A25: 17
A26: 18
A27: 19
A28: 20
A29: 21
A30: 22
A31: 23
A32: 24
A33: 25
A34: 26

Sheet EMARG Tableau Qualif
D2: =IF('LISTE ENGAGES'!R3="",'LISTE ENGAGES'!Q3,'LISTE ENGAGES'!R3) -> APPELATION TOURNOI | N2: =IF('LISTE ENGAGES'!R10="",'LISTE ENGAGES'!Q10,'LISTE ENGAGES'!R10) -> ORGANISATEUR
D4: =IF('LISTE ENGAGES'!R4="",'LISTE ENGAGES'!Q4,'LISTE ENGAGES'!R4) -> LIEU | H4: =IF('LISTE ENGAGES'!R8="",'LISTE ENGAGES'!Q8,'LISTE ENGAGES'!R8) -> DATE FIN | M4: =IF('LISTE ENGAGES'!R9="",'LISTE ENGAGES'!Q9,'LISTE ENGAGES'!R9) -> GENRE
D5: =IF('LISTE ENGAGES'!R5="",'LISTE ENGAGES'!Q5,'LISTE ENGAGES'!R5) -> TYPE
D6: FEUILLE EMARGEMENT
A8: N° | C8: NOM | D8: PRENOM | E8: LIC | F8: CLUB | G8: NOM | H8: PRENOM | I8: LIC | J8: CLUB | K8: pts | L8: tir | M8: SIGNATURE JOUEUR1 | N8: SIGNATURE JOUEUR2
A9: 1 | C9: T | G9: 1
A10: 2 | C10: T | G10: 2
A11: 3 | C11: T | G11: 3
A12: 4 | C12: T | G12: 4
A13: 5 | C13: T | G13: 5
A14: 6 | C14: T | G14: 6
A15: 7 | C15: T | G15: 7
A16: 8 | C16: T | G16: 8
A17: 9 | C17: T | G17: 9
A18: 10 | C18: T | G18: 10
A19: 11 | C19: T | G19: 11
A20: 12 | C20: T | G20: 12
A21: 13 | C21: T | G21: 13
A22: 14 | C22: T | G22: 14
A23: 15 | C23: T | G23: 15
A24: 16 | C24: T | G24: 16
C26: Copier/coller selon LISTE ENGAGES en fonction des équipes confirmées
C27: ATTENTION : Respecter l'ordre des têtes de séries.
C28: Ex: Si Sur LISTE ENGAGES, l'équipe 9 absente, la numéro 10 devient la numéro 9 dans EMARG

Sheet PLANNING PS 16 Quali
H2: =IF('LISTE ENGAGES'!R3="",'LISTE ENGAGES'!Q3,'LISTE ENGAGES'!R3) -> APPELATION TOURNOI | Q2: =IF('LISTE ENGAGES'!$R$10<>"",'LISTE ENGAGES'!$R$10,'LISTE ENGAGES'!$Q$10) -> ORGANISATEUR
B4: J1 | C4: HEURE DEBUT | E4: 09:00:00
C5: DUREE MATCH | E5: 00:50:00
H6: =IF('LISTE ENGAGES'!R4="",'LISTE ENGAGES'!Q4,'LISTE ENGAGES'!R4) -> LIEU | K6: =IF('LISTE ENGAGES'!R8="",'LISTE ENGAGES'!Q8,'LISTE ENGAGES'!R8) -> DATE FIN | O6: =IF('LISTE ENGAGES'!R9="",'LISTE ENGAGES'!Q9,'LISTE ENGAGES'!R9) -> GENRE
H7: =IF('LISTE ENGAGES'!R5="",'LISTE ENGAGES'!Q5,'LISTE ENGAGES'!R5) -> TYPE
H8: PLANNING DES RENCONTRES TABLEAU DE QUALIFICATION
E13: MATCH | F13: n° | G13: TER. | H13: E1 | I13: ./. | J13: E2 | K13: ARB | L13: MATCH | M13: n° | N13: TER. | O13: E1 | P13: ./. | Q13: E2 | R13: ARB | S13: POINTS
C14: JOUR 1 | D14: =E4 -> 09:00:00 | E14: AM1 | F14: 1 | H14: ='TAB 16 PS Qualif'!C13 -> T / 1 | J14: ='TAB 16 PS Qualif'!C16 -> T / 16 | L14: AM2 | M14: 5 | O14: ='TAB 16 PS Qualif'!C14 -> T / 8 | Q14: ='TAB 16 PS Qualif'!C15 -> T / 9 | S14: 2*21, SD 15
D15: =D14+$E$5 -> 09:50:00 | E15: BM1 | F15: 3 | H15: ='TAB 16 PS Qualif'!C20 -> T / 2 | J15: ='TAB 16 PS Qualif'!C23 -> T / 15 | L15: BM2 | M15: 7 | O15: ='TAB 16 PS Qualif'!C21 -> T / 7 | Q15: ='TAB 16 PS Qualif'!C22 -> T / 10 | S15: 2*21, SD 15
D16: =D15+$E$5 -> 10:40:00 | E16: CM1 | F16: 2 | H16: ='TAB 16 PS Qualif'!C27 -> T / 3 | J16: ='TAB 16 PS Qualif'!C30 -> T / 14 | L16: CM2 | M16: 6 | O16: ='TAB 16 PS Qualif'!C28 -> T / 6 | Q16: ='TAB 16 PS Qualif'!C29 -> T / 11 | S16: 2*21, SD 15
D17: 11:30:00 | E17: DM1 | F17: 4 | H17: ='TAB 16 PS Qualif'!C34 -> T / 4 | J17: ='TAB 16 PS Qualif'!C37 -> T / 13 | L17: DM2 | M17: 8 | O17: ='TAB 16 PS Qualif'!C35 -> T / 5 | Q17: ='TAB 16 PS Qualif'!C36 -> T / 12 | S17: 2*21, SD 15
D18: 12:20:00 | E18: AM3 | F18: 9 | H18: ='TAB 16 PS Qualif'!C14 -> T / 8 | J18: ='TAB 16 PS Qualif'!C16 -> T / 16 | L18: AM4 | M18: 13 | O18: ='TAB 16 PS Qualif'!C13 -> T / 1 | Q18: ='TAB 16 PS Qualif'!C15 -> T / 9 | S18: 2*21, SD 15
D19: 13:10:00 | E19: BM3 | F19: 11 | H19: ='TAB 16 PS Qualif'!C21 -> T / 7 | J19: ='TAB 16 PS Qualif'!C23 -> T / 15 | L19: BM4 | M19: 15 | O19: ='TAB 16 PS Qualif'!C20 -> T / 2 | Q19: ='TAB 16 PS Qualif'!C22 -> T / 10 | S19: 2*21, SD 15
D20: 14:00:00 | E20: CM3 | F20: 10 | H20: ='TAB 16 PS Qualif'!C28 -> T / 6 | J20: ='TAB 16 PS Qualif'!C30 -> T / 14 | L20: CM4 | M20: 14 | O20: ='TAB 16 PS Qualif'!C27 -> T / 3 | Q20: ='TAB 16 PS Qualif'!C29 -> T / 11 | S20: 2*21, SD 15
D21: 14:50:00 | E21: DM3 | F21: 12 | H21: ='TAB 16 PS Qualif'!C35 -> T / 5 | J21: ='TAB 16 PS Qualif'!C37 -> T / 13 | L21: DM4 | M21: 16 | O21: ='TAB 16 PS Qualif'!C34 -> T / 4 | Q21: ='TAB 16 PS Qualif'!C36 -> T / 12 | S21: 2*21, SD 15
D22: 15:40:00 | E22: AM5 | F22: 17 | H22: ='TAB 16 PS Qualif'!C15 -> T / 9 | J22: ='TAB 16 PS Qualif'!C16 -> T / 16 | L22: AM6 | M22: 21 | O22: ='TAB 16 PS Qualif'!C13 -> T / 1 | Q22: ='TAB 16 PS Qualif'!C14 -> T / 8 | S22: 2*21, SD 15
D23: 16:30:00 | E23: BM5 | F23: 19 | H23: ='TAB 16 PS Qualif'!C22 -> T / 10 | J23: ='TAB 16 PS Qualif'!C23 -> T / 15 | L23: BM6 | M23: 23 | O23: ='TAB 16 PS Qualif'!C20 -> T / 2 | Q23: ='TAB 16 PS Qualif'!C21 -> T / 7 | S23: 2*21, SD 15
D24: 17:20:00 | E24: CM5 | F24: 18 | H24: ='TAB 16 PS Qualif'!C29 -> T / 11 | J24: ='TAB 16 PS Qualif'!C30 -> T / 14 | L24: CM6 | M24: 22 | O24: ='TAB 16 PS Qualif'!C27 -> T / 3 | Q24: ='TAB 16 PS Qualif'!C28 -> T / 6 | S24: 2*21, SD 15
D25: 18:10:00 | E25: DM5 | F25: 20 | H25: ='TAB 16 PS Qualif'!C36 -> T / 12 | J25: ='TAB 16 PS Qualif'!C37 -> T / 13 | L25: DM6 | M25: 24 | O25: ='TAB 16 PS Qualif'!C34 -> T / 4 | Q25: ='TAB 16 PS Qualif'!C35 -> T / 5 | S25: 2*21, SD 15
D26: 19:00:00 | E26: BARR 1 | F26: 25 | H26: ='TAB 16 PS Qualif'!L14 ->  | J26: ='TAB 16 PS Qualif'!L19 ->  | L26: BARR 2 | M26: 26 | O26: ='TAB 16 PS Qualif'!L22 ->  | Q26: ='TAB 16 PS Qualif'!L27 -> 
D27: 19:50:00 | E27: FIN

Sheet SCORE QUAL
F1: TABLEAU DE SAISIE DE RESULTATS
A3: DEBUT J1 | B3: 09:00:00 | F3: Saisir le résultats des sets dans les cases bordurées et colorées uniquement
A4: TEMPS | B4: 00:30:00
A5: DEBUT J2 | B5: 00:00:00
C7: PHASE | D7: JOUR | E7: N° MATCH | F7: HEURE | G7: TER | H7: EQ1 | J7: EQ2 | K7: SCORE EQ1 | M7: SCORE EQ2 | N7: SET 1 EQ1 | O7: SET 1 EQ2 | P7: SET 2 EQ1 | Q7: SET 2 EQ2 | R7: SET 3 EQ1 | S7: SET 3 EQ2 | T7: POS 1 | U7: POS 2 | Y7: A | Z7: PTS | AA7: S+ | AB7: S- | AC7: P+ | AD7: P- | AE7: CS | AF7: CP | AG7: CL.I | AH7: RG | AJ7: CLA
C8: A | D8: 1 | E8: 1 | F8: =B3 -> 09:00:00 | G8: 1 | H8: ='TAB 16 PS Qualif'!C13 -> T / 1 | I8: / | J8: ='TAB 16 PS Qualif'!C16 -> T / 16 | K8: =SUM(IF(N8>O8,1,0),IF(P8>Q8,1,0),IF(R8>S8,1,0)) -> 0 | L8: / | M8: =SUM(IF(O8>N8,1,0),IF(Q8>P8,1,0),IF(S8>R8,1,0)) -> 0 | T8: =IF(K8=M8,"",IF(K8>M8,H8,J8)) ->  | U8: =IF(K8=M8,"",IF(K8<M8,H8,J8)) ->  | Y8: ='TAB 16 PS Qualif'!C13 -> T / 1 | Z8: =COUNTIF(PLACE1,Y8)*2+COUNTIF(PLACE2,Y8) -> 0 | AA8: =SUMIF(LISTEE1,Y8,(SCEQ1))+SUMIF(LISTEE2,Y8,(SCEQ2)) -> 0 | AB8: =SUMIF(LISTEE1,Y8,(SCEQ2))+SUMIF(LISTEE2,Y8,(SCEQ1)) -> 0 | AC8: =(SUMPRODUCT((LISTEE1=Y8)*((S1EQ1)+(S2EQ1)+(S3EQ1))))+(SUMPRODUCT((LISTEE2=Y8)*((S1EQ2)+(S2EQ2)+(S3EQ3)))) -> 0 | AD8: =(SUMPRODUCT((LISTEE2=Y8)*((S1EQ1)+(S2EQ1)+(S3EQ1))))+(SUMPRODUCT((LISTEE1=Y8)*((S1EQ2)+(S2EQ2)+(S3EQ3)))) -> 0 | AE8: =IFERROR(AA8/AB8,0) -> 0 | AF8: =IFERROR(AC8/AD8,0) -> 0 | AG8: =Z8+AE8/100+AF8/100 -> 0 | AH8: =IF(Z8=0,"",RANK(AG8,$AG$8:$AG$11)) ->  | AI8: 1 | AJ8: =IF(Z8=0,"",IF($AH$8=AI8,$Y$8,IF($AH$9=AI8,$Y$9,IF($AH$10=AI8,$Y$10,IF($AH$11=AI8,$Y$11))))) -> 
C9: B | D9: 1 | E9: 2 | F9: =B3 -> 09:00:00 | G9: 2 | H9: ='TAB 16 PS Qualif'!C20 -> T / 2 | I9: / | J9: ='TAB 16 PS Qualif'!C23 -> T / 15 | K9: =SUM(IF(N9>O9,1,0),IF(P9>Q9,1,0),IF(R9>S9,1,0)) -> 0 | L9: / | M9: =SUM(IF(O9>N9,1,0),IF(Q9>P9,1,0),IF(S9>R9,1,0)) -> 0 | T9: =IF(K9=M9,"",IF(K9>M9,H9,J9)) ->  | U9: =IF(K9=M9,"",IF(K9<M9,H9,J9)) ->  | Y9: ='TAB 16 PS Qualif'!C14 -> T / 8 | Z9: =COUNTIF(PLACE1,Y9)*2+COUNTIF(PLACE2,Y9) -> 0 | AA9: =SUMIF(LISTEE1,Y9,(SCEQ1))+SUMIF(LISTEE2,Y9,(SCEQ2)) -> 0 | AB9: =SUMIF(LISTEE1,Y9,(SCEQ2))+SUMIF(LISTEE2,Y9,(SCEQ1)) -> 0 | AC9: =(SUMPRODUCT((LISTEE1=Y9)*((S1EQ1)+(S2EQ1)+(S3EQ1))))+(SUMPRODUCT((LISTEE2=Y9)*((S1EQ2)+(S2EQ2)+(S3EQ3)))) -> 0 | AD9: =(SUMPRODUCT((LISTEE2=Y9)*((S1EQ1)+(S2EQ1)+(S3EQ1))))+(SUMPRODUCT((LISTEE1=Y9)*((S1EQ2)+(S2EQ2)+(S3EQ3)))) -> 0 | AE9: =IFERROR(AA9/AB9,0) -> 0 | AF9: =IFERROR(AC9/AD9,0) -> 0 | AG9: =Z9+AE9/100+AF9/100 -> 0 | AH9: =IF(Z9=0,"",RANK(AG9,$AG$8:$AG$11)) ->  | AI9: 2 | AJ9: =IF(Z9=0,"",IF($AH$8=AI9,$Y$8,IF($AH$9=AI9,$Y$9,IF($AH$10=AI9,$Y$10,IF($AH$11=AI9,$Y$11))))) -> 
C10: C | D10: 1 | E10: 3 | F10: =F8+$B$4 -> 09:30:00 | G10: 1 | H10: ='TAB 16 PS Qualif'!C27 -> T / 3 | I10: / | J10: ='TAB 16 PS Qualif'!C30 -> T / 14 | K10: 0 | L10: / | M10: 0 | Y10: ='TAB 16 PS Qualif'!C15 -> T / 9 | Z10: =COUNTIF(PLACE1,Y10)*2+COUNTIF(PLACE2,Y10) -> 0 | AA10: =SUMIF(LISTEE1,Y10,(SCEQ1))+SUMIF(LISTEE2,Y10,(SCEQ2)) -> 0 | AB10: =SUMIF(LISTEE1,Y10,SCEQ2)+SUMIF(LISTEE2,Y10,SCEQ1) -> 0 | AC10: =(SUMPRODUCT((LISTEE1=Y10)*((S1EQ1)+(S2EQ1)+(S3EQ1))))+(SUMPRODUCT((LISTEE2=Y10)*((S1EQ2)+(S2EQ2)+(S3EQ3)))) -> 0 | AD10: =(SUMPRODUCT((LISTEE2=Y10)*((S1EQ1)+(S2EQ1)+(S3EQ1))))+(SUMPRODUCT((LISTEE1=Y10)*((S1EQ2)+(S2EQ2)+(S3EQ3)))) -> 0 | AE10: 0 | AF10: 0 | AG10: 0 | AH10: =IF(Z10=0,"",RANK(AG10,$AG$8:$AG$11)) ->  | AI10: 3 | AJ10: =IF(Z10=0,"",IF($AH$8=AI10,$Y$8,IF($AH$9=AI10,$Y$9,IF($AH$10=AI10,$Y$10,IF($AH$11=AI10,$Y$11))))) -> 
C11: D | D11: 1 | E11: 4 | F11: 09:30:00 | G11: 2 | H11: ='TAB 16 PS Qualif'!C34 -> T / 4 | I11: / | J11: ='TAB 16 PS Qualif'!C37 -> T / 13 | K11: 0 | L11: / | M11: 0 | Y11: ='TAB 16 PS Qualif'!C16 -> T / 16 | Z11: =COUNTIF(PLACE1,Y11)*2+COUNTIF(PLACE2,Y11) -> 0 | AA11: =SUMIF(LISTEE1,Y11,(SCEQ1))+SUMIF(LISTEE2,Y11,(SCEQ2)) -> 0 | AB11: =SUMIF(LISTEE1,Y11,SCEQ2)+SUMIF(LISTEE2,Y11,SCEQ1) -> 0 | AC11: =(SUMPRODUCT((LISTEE1=Y11)*((S1EQ1)+(S2EQ1)+(S3EQ1))))+(SUMPRODUCT((LISTEE2=Y11)*((S1EQ2)+(S2EQ2)+(S3EQ3)))) -> 0 | AD11: =(SUMPRODUCT((LISTEE2=Y11)*((S1EQ1)+(S2EQ1)+(S3EQ1))))+(SUMPRODUCT((LISTEE1=Y11)*((S1EQ2)+(S2EQ2)+(S3EQ3)))) -> 0 | AE11: 0 | AF11: 0 | AG11: 0 | AH11: =IF(Z11=0,"",RANK(AG11,$AG$8:$AG$11)) ->  | AI11: 4 | AJ11: =IF(Z11=0,"",IF($AH$8=AI11,$Y$8,IF($AH$9=AI11,$Y$9,IF($AH$10=AI11,$Y$10,IF($AH$11=AI11,$Y$11))))) -> 
C12: A | D12: 1 | E12: 5 | F12: 10:00:00 | G12: 1 | H12: ='TAB 16 PS Qualif'!C14 -> T / 8 | I12: / | J12: ='TAB 16 PS Qualif'!C15 -> T / 9 | K12: 0 | L12: / | M12: 0 | Y12: B
C13: B | D13: 1 | E13: 6 | F13: 10:00:00 | G13: 2 | H13: ='TAB 16 PS Qualif'!C21 -> T / 7 | I13: / | J13: ='TAB 16 PS Qualif'!C22 -> T / 10 | K13: 0 | L13: / | M13: 0 | Y13: ='TAB 16 PS Qualif'!C20 -> T / 2 | Z13: =COUNTIF(PLACE1,Y13)*2+COUNTIF(PLACE2,Y13) -> 0 | AA13: =SUMIF(LISTEE1,Y13,(SCEQ1))+SUMIF(LISTEE2,Y13,(SCEQ2)) -> 0 | AB13: =SUMIF(LISTEE1,Y13,SCEQ2)+SUMIF(LISTEE2,Y13,SCEQ1) -> 0 | AC13: =(SUMPRODUCT((LISTEE1=Y13)*((S1EQ1)+(S2EQ1)+(S3EQ1))))+(SUMPRODUCT((LISTEE2=Y13)*((S1EQ2)+(S2EQ2)+(S3EQ3)))) -> 0 | AD13: =(SUMPRODUCT((LISTEE2=Y13)*((S1EQ1)+(S2EQ1)+(S3EQ1))))+(SUMPRODUCT((LISTEE1=Y13)*((S1EQ2)+(S2EQ2)+(S3EQ3)))) -> 0 | AE13: 0 | AF13: 0 | AG13: 0 | AH13: =IF(Z13=0,"",RANK(AG13,$AG$13:$AG$16)) ->  | AI13: 1 | AJ13: =IF(Z13=0,"",IF($AH$13=AI13,$Y$13,IF($AH$14=AI13,$Y$14,IF($AH$15=AI13,$Y$15,IF($AH$16=AI13,$Y$16))))) -> 
C14: C | D14: 1 | E14: 7 | F14: 10:30:00 | G14: 1 | H14: ='TAB 16 PS Qualif'!C28 -> T / 6 | I14: / | J14: ='TAB 16 PS Qualif'!C29 -> T / 11 | K14: =SUM(IF(N14>O14,1,0),IF(P14>Q14,1,0),IF(R14>S14,1,0)) -> 0 | L14: / | M14: 0 | T14: =IF(K14=M14,"",IF(K14>M14,H14,J14)) ->  | Y14: ='TAB 16 PS Qualif'!C21 -> T / 7 | Z14: =COUNTIF(PLACE1,Y14)*2+COUNTIF(PLACE2,Y14) -> 0 | AA14: =SUMIF(LISTEE1,Y14,(SCEQ1))+SUMIF(LISTEE2,Y14,(SCEQ2)) -> 0 | AB14: =SUMIF(LISTEE1,Y14,SCEQ2)+SUMIF(LISTEE2,Y14,SCEQ1) -> 0 | AC14: =(SUMPRODUCT((LISTEE1=Y14)*((S1EQ1)+(S2EQ1)+(S3EQ1))))+(SUMPRODUCT((LISTEE2=Y14)*((S1EQ2)+(S2EQ2)+(S3EQ3)))) -> 0 | AD14: =(SUMPRODUCT((LISTEE2=Y14)*((S1EQ1)+(S2EQ1)+(S3EQ1))))+(SUMPRODUCT((LISTEE1=Y14)*((S1EQ2)+(S2EQ2)+(S3EQ3)))) -> 0 | AE14: 0 | AF14: 0 | AG14: 0 | AH14: =IF(Z14=0,"",RANK(AG14,$AG$13:$AG$16)) ->  | AI14: 2 | AJ14: =IF(Z14=0,"",IF($AH$13=AI14,$Y$13,IF($AH$14=AI14,$Y$14,IF($AH$15=AI14,$Y$15,IF($AH$16=AI14,$Y$16))))) -> 
C15: D | D15: 1 | E15: 8 | F15: 10:30:00 | G15: 2 | H15: ='TAB 16 PS Qualif'!C35 -> T / 5 | I15: / | J15: ='TAB 16 PS Qualif'!C36 -> T / 12 | K15: 0 | L15: / | M15: 0 | Y15: ='TAB 16 PS Qualif'!C22 -> T / 10 | Z15: =COUNTIF(PLACE1,Y15)*2+COUNTIF(PLACE2,Y15) -> 0 | AA15: =SUMIF(LISTEE1,Y15,(SCEQ1))+SUMIF(LISTEE2,Y15,(SCEQ2)) -> 0 | AB15: =SUMIF(LISTEE1,Y15,SCEQ2)+SUMIF(LISTEE2,Y15,SCEQ1) -> 0 | AC15: =(SUMPRODUCT((LISTEE1=Y15)*((S1EQ1)+(S2EQ1)+(S3EQ1))))+(SUMPRODUCT((LISTEE2=Y15)*((S1EQ2)+(S2EQ2)+(S3EQ3)))) -> 0 | AD15: =(SUMPRODUCT((LISTEE2=Y15)*((S1EQ1)+(S2EQ1)+(S3EQ1))))+(SUMPRODUCT((LISTEE1=Y15)*((S1EQ2)+(S2EQ2)+(S3EQ3)))) -> 0 | AE15: 0 | AF15: 0 | AG15: 0 | AH15: =IF(Z15=0,"",RANK(AG15,$AG$13:$AG$16)) ->  | AI15: 3 | AJ15: =IF(Z15=0,"",IF($AH$13=AI15,$Y$13,IF($AH$14=AI15,$Y$14,IF($AH$15=AI15,$Y$15,IF($AH$16=AI15,$Y$16))))) -> 
C16: A | D16: 1 | E16: 9 | F16: 11:00:00 | G16: 1 | H16: ='TAB 16 PS Qualif'!C14 -> T / 8 | I16: / | J16: ='TAB 16 PS Qualif'!C16 -> T / 16 | K16: 0 | L16: / | M16: 0 | Y16: ='TAB 16 PS Qualif'!C23 -> T / 15 | Z16: =COUNTIF(PLACE1,Y16)*2+COUNTIF(PLACE2,Y16) -> 0 | AA16: =SUMIF(LISTEE1,Y16,(SCEQ1))+SUMIF(LISTEE2,Y16,(SCEQ2)) -> 0 | AB16: =SUMIF(LISTEE1,Y16,SCEQ2)+SUMIF(LISTEE2,Y16,SCEQ1) -> 0 | AC16: =(SUMPRODUCT((LISTEE1=Y16)*((S1EQ1)+(S2EQ1)+(S3EQ1))))+(SUMPRODUCT((LISTEE2=Y16)*((S1EQ2)+(S2EQ2)+(S3EQ3)))) -> 0 | AD16: =(SUMPRODUCT((LISTEE2=Y16)*((S1EQ1)+(S2EQ1)+(S3EQ1))))+(SUMPRODUCT((LISTEE1=Y16)*((S1EQ2)+(S2EQ2)+(S3EQ3)))) -> 0 | AE16: 0 | AF16: 0 | AG16: 0 | AH16: =IF(Z16=0,"",RANK(AG16,$AG$13:$AG$16)) ->  | AI16: 4 | AJ16: =IF(Z16=0,"",IF($AH$13=AI16,$Y$13,IF($AH$14=AI16,$Y$14,IF($AH$15=AI16,$Y$15,IF($AH$16=AI16,$Y$16))))) -> 
C17: B | D17: 1 | E17: 10 | F17: 11:00:00 | G17: 2 | H17: ='TAB 16 PS Qualif'!C21 -> T / 7 | I17: / | J17: ='TAB 16 PS Qualif'!C23 -> T / 15 | K17: 0 | L17: / | M17: 0 | Y17: C
C18: C | D18: 1 | E18: 11 | F18: 11:30:00 | G18: 1 | H18: ='TAB 16 PS Qualif'!C28 -> T / 6 | I18: / | J18: ='TAB 16 PS Qualif'!C30 -> T / 14 | K18: 0 | L18: / | M18: 0 | Y18: ='TAB 16 PS Qualif'!C27 -> T / 3 | Z18: =COUNTIF(PLACE1,Y18)*2+COUNTIF(PLACE2,Y18) -> 0 | AA18: =SUMIF(LISTEE1,Y18,(SCEQ1))+SUMIF(LISTEE2,Y18,(SCEQ2)) -> 0 | AB18: =SUMIF(LISTEE1,Y18,SCEQ2)+SUMIF(LISTEE2,Y18,SCEQ1) -> 0 | AC18: =(SUMPRODUCT((LISTEE1=Y18)*((S1EQ1)+(S2EQ1)+(S3EQ1))))+(SUMPRODUCT((LISTEE2=Y18)*((S1EQ2)+(S2EQ2)+(S3EQ3)))) -> 0 | AD18: =(SUMPRODUCT((LISTEE2=Y18)*((S1EQ1)+(S2EQ1)+(S3EQ1))))+(SUMPRODUCT((LISTEE1=Y18)*((S1EQ2)+(S2EQ2)+(S3EQ3)))) -> 0 | AE18: =IFERROR(AA18/AB18,0) -> 0 | AF18: 0 | AG18: =Z18+AE18/100+AF18/100 -> 0 | AH18: =IF(Z18=0,"",RANK(AG18,$AG$18:$AG$21)) ->  | AI18: 1 | AJ18: =IF(Z18=0,"",IF($AH$18=AI18,$Y$18,IF($AH$19=AI18,$Y$19,IF($AH$20=AI18,$Y$20,IF($AH$21=AI18,$Y$21))))) -> 
C19: D | D19: 1 | E19: 12 | F19: 11:30:00 | G19: 2 | H19: ='TAB 16 PS Qualif'!C35 -> T / 5 | I19: / | J19: ='TAB 16 PS Qualif'!C37 -> T / 13 | K19: 0 | L19: / | M19: 0 | Y19: ='TAB 16 PS Qualif'!C28 -> T / 6 | Z19: =COUNTIF(PLACE1,Y19)*2+COUNTIF(PLACE2,Y19) -> 0 | AA19: =SUMIF(LISTEE1,Y19,(SCEQ1))+SUMIF(LISTEE2,Y19,(SCEQ2)) -> 0 | AB19: =SUMIF(LISTEE1,Y19,SCEQ2)+SUMIF(LISTEE2,Y19,SCEQ1) -> 0 | AC19: =(SUMPRODUCT((LISTEE1=Y19)*((S1EQ1)+(S2EQ1)+(S3EQ1))))+(SUMPRODUCT((LISTEE2=Y19)*((S1EQ2)+(S2EQ2)+(S3EQ3)))) -> 0 | AD19: =(SUMPRODUCT((LISTEE2=Y19)*((S1EQ1)+(S2EQ1)+(S3EQ1))))+(SUMPRODUCT((LISTEE1=Y19)*((S1EQ2)+(S2EQ2)+(S3EQ3)))) -> 0 | AE19: 0 | AF19: 0 | AG19: =Z19+AE19/100+AF19/100 -> 0 | AH19: =IF(Z19=0,"",RANK(AG19,$AG$18:$AG$21)) ->  | AI19: 2 | AJ19: =IF(Z19=0,"",IF($AH$18=AI19,$Y$18,IF($AH$19=AI19,$Y$19,IF($AH$20=AI19,$Y$20,IF($AH$21=AI19,$Y$21))))) -> 
C20: A | D20: 1 | E20: 17 | F20: 12:00:00 | G20: 1 | H20: ='TAB 16 PS Qualif'!C13 -> T / 1 | I20: / | J20: ='TAB 16 PS Qualif'!C15 -> T / 9 | K20: 0 | L20: / | M20: 0 | Y20: ='TAB 16 PS Qualif'!C29 -> T / 11 | Z20: =COUNTIF(PLACE1,Y20)*2+COUNTIF(PLACE2,Y20) -> 0 | AA20: =SUMIF(LISTEE1,Y20,(SCEQ1))+SUMIF(LISTEE2,Y20,(SCEQ2)) -> 0 | AB20: =SUMIF(LISTEE1,Y20,SCEQ2)+SUMIF(LISTEE2,Y20,SCEQ1) -> 0 | AC20: =(SUMPRODUCT((LISTEE1=Y20)*((S1EQ1)+(S2EQ1)+(S3EQ1))))+(SUMPRODUCT((LISTEE2=Y20)*((S1EQ2)+(S2EQ2)+(S3EQ3)))) -> 0 | AD20: =(SUMPRODUCT((LISTEE2=Y20)*((S1EQ1)+(S2EQ1)+(S3EQ1))))+(SUMPRODUCT((LISTEE1=Y20)*((S1EQ2)+(S2EQ2)+(S3EQ3)))) -> 0 | AE20: 0 | AF20: 0 | AG20: 0 | AI20: 3 | AJ20: =IF(Z20=0,"",IF($AH$18=AI20,$Y$18,IF($AH$19=AI20,$Y$19,IF($AH$20=AI20,$Y$20,IF($AH$21=AI20,$Y$21))))) -> 
C21: B | D21: 1 | E21: 18 | F21: 12:00:00 | G21: 2 | H21: ='TAB 16 PS Qualif'!C20 -> T / 2 | I21: / | J21: ='TAB 16 PS Qualif'!C22 -> T / 10 | K21: 0 | L21: / | M21: 0 | Y21: ='TAB 16 PS Qualif'!C30 -> T / 14 | Z21: =COUNTIF(PLACE1,Y21)*2+COUNTIF(PLACE2,Y21) -> 0 | AA21: =SUMIF(LISTEE1,Y21,(SCEQ1))+SUMIF(LISTEE2,Y21,(SCEQ2)) -> 0 | AB21: =SUMIF(LISTEE1,Y21,SCEQ2)+SUMIF(LISTEE2,Y21,SCEQ1) -> 0 | AC21: =(SUMPRODUCT((LISTEE1=Y21)*((S1EQ1)+(S2EQ1)+(S3EQ1))))+(SUMPRODUCT((LISTEE2=Y21)*((S1EQ2)+(S2EQ2)+(S3EQ3)))) -> 0 | AD21: =(SUMPRODUCT((LISTEE2=Y21)*((S1EQ1)+(S2EQ1)+(S3EQ1))))+(SUMPRODUCT((LISTEE1=Y21)*((S1EQ2)+(S2EQ2)+(S3EQ3)))) -> 0 | AE21: 0 | AF21: 0 | AG21: =Z21+AE21/100+AF21/100 -> 0 | AI21: 4 | AJ21: =IF(Z21=0,"",IF($AH$18=AI21,$Y$18,IF($AH$19=AI21,$Y$19,IF($AH$20=AI21,$Y$20,IF($AH$21=AI21,$Y$21))))) -> 
C22: C | D22: 1 | E22: 19 | F22: 12:30:00 | G22: 1 | H22: ='TAB 16 PS Qualif'!C27 -> T / 3 | I22: / | J22: ='TAB 16 PS Qualif'!C29 -> T / 11 | K22: 0 | L22: / | M22: 0 | Y22: D
C23: D | D23: 1 | E23: 20 | F23: 12:30:00 | G23: 2 | H23: ='TAB 16 PS Qualif'!C34 -> T / 4 | I23: / | J23: ='TAB 16 PS Qualif'!C36 -> T / 12 | K23: 0 | L23: / | M23: 0 | Y23: ='TAB 16 PS Qualif'!C34 -> T / 4 | Z23: =COUNTIF(PLACE1,Y23)*2+COUNTIF(PLACE2,Y23) -> 0 | AA23: =SUMIF(LISTEE1,Y23,(SCEQ1))+SUMIF(LISTEE2,Y23,(SCEQ2)) -> 0 | AB23: =SUMIF(LISTEE1,Y23,SCEQ2)+SUMIF(LISTEE2,Y23,SCEQ1) -> 0 | AC23: =(SUMPRODUCT((LISTEE1=Y23)*((S1EQ1)+(S2EQ1)+(S3EQ1))))+(SUMPRODUCT((LISTEE2=Y23)*((S1EQ2)+(S2EQ2)+(S3EQ3)))) -> 0 | AD23: =(SUMPRODUCT((LISTEE2=Y23)*((S1EQ1)+(S2EQ1)+(S3EQ1))))+(SUMPRODUCT((LISTEE1=Y23)*((S1EQ2)+(S2EQ2)+(S3EQ3)))) -> 0 | AE23: 0 | AF23: 0 | AG23: 0 | AH23: =IF(Z23=0,"",RANK(AG23,$AG$23:$AG$26)) ->  | AI23: 1 | AJ23: =IF(Z23=0,"",IF($AH$23=AI23,$Y$23,IF($AH$24=AI23,$Y$24,IF($AH$25=AI23,$Y$25,IF($AH$26=AI23,$Y$26))))) -> 
C24: A | D24: 1 | E24: 21 | F24: 13:00:00 | G24: 1 | H24: ='TAB 16 PS Qualif'!C15 -> T / 9 | I24: / | J24: ='TAB 16 PS Qualif'!C16 -> T / 16 | K24: 0 | L24: / | M24: 0 | Y24: ='TAB 16 PS Qualif'!C35 -> T / 5 | Z24: =COUNTIF(PLACE1,Y24)*2+COUNTIF(PLACE2,Y24) -> 0 | AA24: =SUMIF(LISTEE1,Y24,(SCEQ1))+SUMIF(LISTEE2,Y24,(SCEQ2)) -> 0 | AB24: =SUMIF(LISTEE1,Y24,SCEQ2)+SUMIF(LISTEE2,Y24,SCEQ1) -> 0 | AC24: =(SUMPRODUCT((LISTEE1=Y24)*((S1EQ1)+(S2EQ1)+(S3EQ1))))+(SUMPRODUCT((LISTEE2=Y24)*((S1EQ2)+(S2EQ2)+(S3EQ3)))) -> 0 | AD24: =(SUMPRODUCT((LISTEE2=Y24)*((S1EQ1)+(S2EQ1)+(S3EQ1))))+(SUMPRODUCT((LISTEE1=Y24)*((S1EQ2)+(S2EQ2)+(S3EQ3)))) -> 0 | AE24: 0 | AF24: 0 | AG24: 0 | AH24: =IF(Z24=0,"",RANK(AG24,$AG$23:$AG$26)) ->  | AI24: 2 | AJ24: =IF(Z24=0,"",IF($AH$23=AI24,$Y$23,IF($AH$24=AI24,$Y$24,IF($AH$25=AI24,$Y$25,IF($AH$26=AI24,$Y$26))))) -> 
C25: B | D25: 1 | E25: 22 | F25: 13:00:00 | G25: 2 | H25: ='TAB 16 PS Qualif'!C22 -> T / 10 | I25: / | J25: ='TAB 16 PS Qualif'!C23 -> T / 15 | K25: 0 | L25: / | M25: 0 | Y25: ='TAB 16 PS Qualif'!C36 -> T / 12 | Z25: =COUNTIF(PLACE1,Y25)*2+COUNTIF(PLACE2,Y25) -> 0 | AA25: =SUMIF(LISTEE1,Y25,(SCEQ1))+SUMIF(LISTEE2,Y25,(SCEQ2)) -> 0 | AB25: =SUMIF(LISTEE1,Y25,SCEQ2)+SUMIF(LISTEE2,Y25,SCEQ1) -> 0 | AC25: =(SUMPRODUCT((LISTEE1=Y25)*((S1EQ1)+(S2EQ1)+(S3EQ1))))+(SUMPRODUCT((LISTEE2=Y25)*((S1EQ2)+(S2EQ2)+(S3EQ3)))) -> 0 | AD25: =(SUMPRODUCT((LISTEE2=Y25)*((S1EQ1)+(S2EQ1)+(S3EQ1))))+(SUMPRODUCT((LISTEE1=Y25)*((S1EQ2)+(S2EQ2)+(S3EQ3)))) -> 0 | AE25: 0 | AF25: 0 | AG25: 0 | AI25: 3
C26: C | D26: 1 | E26: 23 | F26: 13:30:00 | G26: 1 | H26: ='TAB 16 PS Qualif'!C29 -> T / 11 | I26: / | J26: ='TAB 16 PS Qualif'!C30 -> T / 14 | K26: 0 | L26: / | M26: 0 | Y26: ='TAB 16 PS Qualif'!C37 -> T / 13 | Z26: =COUNTIF(PLACE1,Y26)*2+COUNTIF(PLACE2,Y26) -> 0 | AA26: =SUMIF(LISTEE1,Y26,(SCEQ1))+SUMIF(LISTEE2,Y26,(SCEQ2)) -> 0 | AB26: =SUMIF(LISTEE1,Y26,SCEQ2)+SUMIF(LISTEE2,Y26,SCEQ1) -> 0 | AC26: =(SUMPRODUCT((LISTEE1=Y26)*((S1EQ1)+(S2EQ1)+(S3EQ1))))+(SUMPRODUCT((LISTEE2=Y26)*((S1EQ2)+(S2EQ2)+(S3EQ3)))) -> 0 | AD26: =(SUMPRODUCT((LISTEE2=Y26)*((S1EQ1)+(S2EQ1)+(S3EQ1))))+(SUMPRODUCT((LISTEE1=Y26)*((S1EQ2)+(S2EQ2)+(S3EQ3)))) -> 0 | AE26: 0 | AF26: 0 | AG26: 0 | AI26: 4 | AJ26: =IF(Z26=0,"",IF($AH$23=AI26,$Y$23,IF($AH$24=AI26,$Y$24,IF($AH$25=AI26,$Y$25,IF($AH$26=AI26,$Y$26))))) -> 
C27: D | D27: 1 | E27: 24 | F27: 13:30:00 | G27: 2 | H27: ='TAB 16 PS Qualif'!C36 -> T / 12 | I27: / | J27: ='TAB 16 PS Qualif'!C37 -> T / 13 | K27: 0 | L27: / | M27: 0 | T27: =IF(K27=M27,"",IF(K27>M27,H27,J27)) -> 
C28: A | D28: 1 | E28: 25 | F28: 14:00:00 | G28: 3 | H28: ='TAB 16 PS Qualif'!C13 -> T / 1 | I28: / | J28: ='TAB 16 PS Qualif'!C14 -> T / 8 | K28: =SUM(IF(N28>O28,1,0),IF(P28>Q28,1,0),IF(R28>S28,1,0)) -> 0 | L28: / | M28: =SUM(IF(O28>N28,1,0),IF(Q28>P28,1,0),IF(S28>R28,1,0)) -> 0 | T28: =IF(K28=M28,"",IF(K28>M28,H28,J28)) ->  | U28: =IF(K28=M28,"",IF(K28<M28,H28,J28)) -> 
C29: B | D29: 1 | E29: 26 | F29: 14:00:00 | G29: 4 | H29: ='TAB 16 PS Qualif'!C20 -> T / 2 | I29: / | J29: ='TAB 16 PS Qualif'!C21 -> T / 7 | K29: 0 | L29: / | M29: 0
C30: C | D30: 1 | E30: 27 | F30: 14:30:00 | G30: 5 | H30: ='TAB 16 PS Qualif'!C27 -> T / 3 | I30: / | J30: ='TAB 16 PS Qualif'!C28 -> T / 6 | K30: 0 | L30: / | M30: 0
C31: D | D31: 1 | E31: 28 | F31: 14:30:00 | G31: 6 | H31: ='TAB 16 PS Qualif'!C34 -> T / 4 | I31: / | J31: ='TAB 16 PS Qualif'!C35 -> T / 5 | K31: 0 | L31: / | M31: 0
C32: BARR | D32: 1 | E32: 29 | F32: =F26+$B$4 -> 14:00:00 | G32: 1 | H32: =AJ9 ->  | I32: / | J32: =AJ24 ->  | K32: 0 | L32: / | M32: 0 | T32: =IF(K32=M32,"",IF(K32>M32,H32,J32)) -> 
C33: BARR | D33: 1 | E33: 30 | F33: =F27+$B$4 -> 14:00:00 | G33: 2 | H33: =AJ14 ->  | I33: / | J33: =AJ19 ->  | K33: 0 | L33: / | M33: 0 | T33: =IF(K33=M33,"",IF(K33>M33,H33,J33)) -> 
C34: BARR | D34: 1 | E34: 31 | F34: 14:30:00 | G34: 1 | I34: / | K34: 0 | L34: / | M34: 0
C35: BARR | D35: 1 | E35: 32 | F35: 14:30:00 | G35: 2 | I35: / | K35: 0 | L35: / | M35: 0
C36: 1/4 | D36: 1 | E36: 33 | F36: 15:00:00 | G36: 1 | I36: / | K36: 0 | L36: / | M36: 0
C37: 1/4 | D37: 1 | E37: 34 | F37: 15:00:00 | G37: 2 | I37: / | K37: 0 | L37: / | M37: 0
C38: 1/4 | D38: 1 | E38: 35 | F38: 15:30:00 | G38: 1 | I38: / | J38: =T34 ->  | K38: 0 | L38: / | M38: 0
C39: 1/4 | D39: 1 | E39: 36 | F39: 15:30:00 | G39: 2 | I39: / | K39: 0 | L39: / | M39: 0
C40: 1/2 | D40: 1 | E40: 37 | F40: 16:00:00 | I40: / | J40: =T37 ->  | K40: 0 | L40: / | M40: 0
C41: 1/2 | D41: 1 | E41: 38 | F41: =F40+$B$4 -> 16:30:00 | H41: =T39 ->  | I41: / | J41: =T38 ->  | K41: 0 | L41: / | M41: 0
C42: 3-4 | D42: 1 | E42: 39 | F42: =F41+$B$4 -> 17:00:00 | H42: =U40 ->  | I42: / | J42: =U41 ->  | K42: 0 | L42: / | M42: 0
C43: F | D43: 1 | E43: 40 | F43: =F42+$B$4 -> 17:30:00 | H43: =T40 ->  | I43: / | J43: =T41 ->  | K43: 0 | L43: / | M43: 0

Sheet TAB 16 PS Qualif
D1: =IF('LISTE ENGAGES'!R3="",'LISTE ENGAGES'!Q3,'LISTE ENGAGES'!R3) -> APPELATION TOURNOI | M1: =IF('LISTE ENGAGES'!$R$10<>"",'LISTE ENGAGES'!$R$10,'LISTE ENGAGES'!$Q$10) -> ORGANISATEUR
D5: =IF('LISTE ENGAGES'!R4="",'LISTE ENGAGES'!Q4,'LISTE ENGAGES'!R4) -> LIEU | I5: =IF('LISTE ENGAGES'!R8="",'LISTE ENGAGES'!Q8,'LISTE ENGAGES'!R8) -> DATE FIN | K5: =IF('LISTE ENGAGES'!R9="",'LISTE ENGAGES'!Q9,'LISTE ENGAGES'!R9) -> GENRE
D6: =IF('LISTE ENGAGES'!R5="",'LISTE ENGAGES'!Q5,'LISTE ENGAGES'!R5) -> TYPE
D7: TABLEAU DE QUALIFICATION
C10: POULES | E10: RESULTATS | I10: CLASSEMENT | L10: BARRAGES
I11: POULE
D12: TS1-TS16 | E12: (1) | F12: =IF('SCORE QUAL'!K8='SCORE QUAL'!M8,"",CONCATENATE('SCORE QUAL'!K8," / ",'SCORE QUAL'!M8," (",'SCORE QUAL'!N8,"-",'SCORE QUAL'!O8,")"," (",'SCORE QUAL'!P8,"-",'SCORE QUAL'!Q8,")"," (",'SCORE QUAL'!R8,"-",'SCORE QUAL'!S8,")")) -> 
B13: T1 | C13: =CONCATENATE('EMARG Tableau Qualif'!C9," / ",'EMARG Tableau Qualif'!G9) -> T / 1 | D13: TS8-TS9 | E13: (5) | F13: =IF('SCORE QUAL'!K12='SCORE QUAL'!M12,"",CONCATENATE('SCORE QUAL'!K12," / ",'SCORE QUAL'!M12," (",'SCORE QUAL'!N12,"-",'SCORE QUAL'!O12,")"," (",'SCORE QUAL'!P12,"-",'SCORE QUAL'!Q12,")"," (",'SCORE QUAL'!R12,"-",'SCORE QUAL'!S12,")")) ->  | H13: 1 | I13: ='SCORE QUAL'!AJ8 ->  | J13: Qualifié
A14: A | B14: T8 | C14: =CONCATENATE('EMARG Tableau Qualif'!C16," / ",'EMARG Tableau Qualif'!G16) -> T / 8 | D14: TS8-TS16 | E14: (9) | F14: =IF('SCORE QUAL'!K16='SCORE QUAL'!M16,"",CONCATENATE('SCORE QUAL'!K16," / ",'SCORE QUAL'!M16," (",'SCORE QUAL'!N16,"-",'SCORE QUAL'!O16,")"," (",'SCORE QUAL'!P16,"-",'SCORE QUAL'!Q16,")"," (",'SCORE QUAL'!R16,"-",'SCORE QUAL'!S16,")")) ->  | H14: 2 | I14: ='SCORE QUAL'!AJ9 ->  | L14: ='SCORE QUAL'!H32 -> 
B15: T9 | C15: =CONCATENATE('EMARG Tableau Qualif'!C17," / ",'EMARG Tableau Qualif'!G17) -> T / 9 | D15: TS1-TS9 | E15: (13) | F15: =IF('SCORE QUAL'!K20='SCORE QUAL'!M20,"",CONCATENATE('SCORE QUAL'!K20," / ",'SCORE QUAL'!M20," (",'SCORE QUAL'!N20,"-",'SCORE QUAL'!O20,")"," (",'SCORE QUAL'!P20,"-",'SCORE QUAL'!Q20,")"," (",'SCORE QUAL'!R20,"-",'SCORE QUAL'!S20,")")) ->  | H15: 3 | I15: ='SCORE QUAL'!AJ10 ->  | J15: 17
B16: T16 | C16: =CONCATENATE('EMARG Tableau Qualif'!C24," / ",'EMARG Tableau Qualif'!G24) -> T / 16 | D16: TS9-TS16 | E16: (17) | F16: =IF('SCORE QUAL'!K24='SCORE QUAL'!M24,"",CONCATENATE('SCORE QUAL'!K24," / ",'SCORE QUAL'!M24," (",'SCORE QUAL'!N24,"-",'SCORE QUAL'!O24,")"," (",'SCORE QUAL'!P24,"-",'SCORE QUAL'!Q24,")"," (",'SCORE QUAL'!R24,"-",'SCORE QUAL'!S24,")")) ->  | H16: 4 | I16: ='SCORE QUAL'!AJ11 ->  | J16: 25 | L16: (25) | M16: ='SCORE QUAL'!T32 -> 
D17: TS1-TS8 | E17: (21) | F17: =IF('SCORE QUAL'!K28='SCORE QUAL'!M28,"",CONCATENATE('SCORE QUAL'!K28," / ",'SCORE QUAL'!M28," (",'SCORE QUAL'!N28,"-",'SCORE QUAL'!O28,")"," (",'SCORE QUAL'!P28,"-",'SCORE QUAL'!Q28,")"," (",'SCORE QUAL'!R28,"-",'SCORE QUAL'!S28,")")) ->  | M17: =IF('SCORE QUAL'!K32='SCORE QUAL'!M32,"",CONCATENATE('SCORE QUAL'!K32," / ",'SCORE QUAL'!M32," (",'SCORE QUAL'!N32,"-",'SCORE QUAL'!O32,")"," (",'SCORE QUAL'!P32,"-",'SCORE QUAL'!Q32,")"," (",'SCORE QUAL'!R32,"-",'SCORE QUAL'!S32,")")) -> 
D19: TS2-TS15 | E19: (3) | F19: =IF('SCORE QUAL'!K9='SCORE QUAL'!M9,"",CONCATENATE('SCORE QUAL'!K9," / ",'SCORE QUAL'!M9," (",'SCORE QUAL'!N9,"-",'SCORE QUAL'!O9,")"," (",'SCORE QUAL'!P9,"-",'SCORE QUAL'!Q9,")"," (",'SCORE QUAL'!R9,"-",'SCORE QUAL'!S9,")")) ->  | L19: ='SCORE QUAL'!J32 -> 
B20: T2 | C20: =CONCATENATE('EMARG Tableau Qualif'!C10," / ",'EMARG Tableau Qualif'!G10) -> T / 2 | D20: TS7-TS10 | E20: (7) | F20: =IF('SCORE QUAL'!K13='SCORE QUAL'!M13,"",CONCATENATE('SCORE QUAL'!K13," / ",'SCORE QUAL'!M13," (",'SCORE QUAL'!N13,"-",'SCORE QUAL'!O13,")"," (",'SCORE QUAL'!P13,"-",'SCORE QUAL'!Q13,")"," (",'SCORE QUAL'!R13,"-",'SCORE QUAL'!S13,")")) ->  | H20: 1 | I20: ='SCORE QUAL'!AJ13 ->  | J20: Qualifié | L20: Vainqueurs : | M20: Qualifiés
A21: B | B21: T7 | C21: =CONCATENATE('EMARG Tableau Qualif'!C15," / ",'EMARG Tableau Qualif'!G15) -> T / 7 | D21: TS7-TS15 | E21: (11) | F21: =IF('SCORE QUAL'!K17='SCORE QUAL'!M17,"",CONCATENATE('SCORE QUAL'!K17," / ",'SCORE QUAL'!M17," (",'SCORE QUAL'!N17,"-",'SCORE QUAL'!O17,")"," (",'SCORE QUAL'!P17,"-",'SCORE QUAL'!Q17,")"," (",'SCORE QUAL'!R17,"-",'SCORE QUAL'!S17,")")) ->  | H21: 2 | I21: ='SCORE QUAL'!AJ14 ->  | L21: Perdants : | M21: 17
B22: T10 | C22: =CONCATENATE('EMARG Tableau Qualif'!C18," / ",'EMARG Tableau Qualif'!G18) -> T / 10 | D22: TS2-TS10 | E22: (15) | F22: =IF('SCORE QUAL'!K21='SCORE QUAL'!M21,"",CONCATENATE('SCORE QUAL'!K21," / ",'SCORE QUAL'!M21," (",'SCORE QUAL'!N21,"-",'SCORE QUAL'!O21,")"," (",'SCORE QUAL'!P21,"-",'SCORE QUAL'!Q21,")"," (",'SCORE QUAL'!R21,"-",'SCORE QUAL'!S21,")")) ->  | H22: 3 | I22: ='SCORE QUAL'!AJ15 ->  | J22: 17 | L22: ='SCORE QUAL'!H33 -> 
B23: T15 | C23: =CONCATENATE('EMARG Tableau Qualif'!C23," / ",'EMARG Tableau Qualif'!G23) -> T / 15 | D23: TS10-TS15 | E23: (19) | F23: =IF('SCORE QUAL'!K25='SCORE QUAL'!M25,"",CONCATENATE('SCORE QUAL'!K25," / ",'SCORE QUAL'!M25," (",'SCORE QUAL'!N25,"-",'SCORE QUAL'!O25,")"," (",'SCORE QUAL'!P25,"-",'SCORE QUAL'!Q25,")"," (",'SCORE QUAL'!R25,"-",'SCORE QUAL'!S25,")")) ->  | H23: 4 | I23: ='SCORE QUAL'!AJ16 ->  | J23: 25
D24: TS2-TS7 | E24: (23) | F24: =IF('SCORE QUAL'!K29='SCORE QUAL'!M29,"",CONCATENATE('SCORE QUAL'!K29," / ",'SCORE QUAL'!M29," (",'SCORE QUAL'!N29,"-",'SCORE QUAL'!O29,")"," (",'SCORE QUAL'!P29,"-",'SCORE QUAL'!Q29,")"," (",'SCORE QUAL'!R29,"-",'SCORE QUAL'!S29,")")) ->  | L24: (26) | M24: ='SCORE QUAL'!T33 -> 
M25: =IF('SCORE QUAL'!K33='SCORE QUAL'!M33,"",CONCATENATE('SCORE QUAL'!K33," / ",'SCORE QUAL'!M33," (",'SCORE QUAL'!N33,"-",'SCORE QUAL'!O33,")"," (",'SCORE QUAL'!P33,"-",'SCORE QUAL'!Q33,")"," (",'SCORE QUAL'!R33,"-",'SCORE QUAL'!S33,")")) -> 
D26: TS3-TS14 | E26: (2) | F26: =IF('SCORE QUAL'!K10='SCORE QUAL'!M10,"",CONCATENATE('SCORE QUAL'!K10," / ",'SCORE QUAL'!M10," (",'SCORE QUAL'!N10,"-",'SCORE QUAL'!O10,")"," (",'SCORE QUAL'!P10,"-",'SCORE QUAL'!Q10,")"," (",'SCORE QUAL'!R10,"-",'SCORE QUAL'!S10,")")) -> 
B27: T3 | C27: =CONCATENATE('EMARG Tableau Qualif'!C11," / ",'EMARG Tableau Qualif'!G11) -> T / 3 | D27: TS6-TS11 | E27: (6) | F27: =IF('SCORE QUAL'!K14='SCORE QUAL'!M14,"",CONCATENATE('SCORE QUAL'!K14," / ",'SCORE QUAL'!M14," (",'SCORE QUAL'!N14,"-",'SCORE QUAL'!O14,")"," (",'SCORE QUAL'!P14,"-",'SCORE QUAL'!Q14,")"," (",'SCORE QUAL'!R14,"-",'SCORE QUAL'!S14,")")) ->  | H27: 1 | I27: ='SCORE QUAL'!AJ18 ->  | J27: Qualifié | L27: ='SCORE QUAL'!J33 -> 
A28: C | B28: T6 | C28: =CONCATENATE('EMARG Tableau Qualif'!C14," / ",'EMARG Tableau Qualif'!G14) -> T / 6 | D28: TS6-TS14 | E28: (10) | F28: =IF('SCORE QUAL'!K18='SCORE QUAL'!M18,"",CONCATENATE('SCORE QUAL'!K18," / ",'SCORE QUAL'!M18," (",'SCORE QUAL'!N18,"-",'SCORE QUAL'!O18,")"," (",'SCORE QUAL'!P18,"-",'SCORE QUAL'!Q18,")"," (",'SCORE QUAL'!R18,"-",'SCORE QUAL'!S18,")")) ->  | H28: 2 | I28: ='SCORE QUAL'!AJ19 ->  | L28: CLASSEMENT
B29: T11 | C29: =CONCATENATE('EMARG Tableau Qualif'!C19," / ",'EMARG Tableau Qualif'!G19) -> T / 11 | D29: TS3-TS11 | E29: (14) | F29: =IF('SCORE QUAL'!K22='SCORE QUAL'!M22,"",CONCATENATE('SCORE QUAL'!K22," / ",'SCORE QUAL'!M22," (",'SCORE QUAL'!N22,"-",'SCORE QUAL'!O22,")"," (",'SCORE QUAL'!P22,"-",'SCORE QUAL'!Q22,")"," (",'SCORE QUAL'!R22,"-",'SCORE QUAL'!S22,")")) ->  | H29: 3 | I29: ='SCORE QUAL'!AJ20 ->  | J29: 17
B30: T14 | C30: =CONCATENATE('EMARG Tableau Qualif'!C22," / ",'EMARG Tableau Qualif'!G22) -> T / 14 | D30: TS11-TS14 | E30: (18) | F30: =IF('SCORE QUAL'!K26='SCORE QUAL'!M26,"",CONCATENATE('SCORE QUAL'!K26," / ",'SCORE QUAL'!M26," (",'SCORE QUAL'!N26,"-",'SCORE QUAL'!O26,")"," (",'SCORE QUAL'!P26,"-",'SCORE QUAL'!Q26,")"," (",'SCORE QUAL'!R26,"-",'SCORE QUAL'!S26,")")) ->  | H30: 4 | I30: ='SCORE QUAL'!AJ21 ->  | J30: 25 | L30: Rang | M30: NOM
D31: TS3-TS6 | E31: (22) | F31: =IF('SCORE QUAL'!K30='SCORE QUAL'!M30,"",CONCATENATE('SCORE QUAL'!K30," / ",'SCORE QUAL'!M30," (",'SCORE QUAL'!N30,"-",'SCORE QUAL'!O30,")"," (",'SCORE QUAL'!P30,"-",'SCORE QUAL'!Q30,")"," (",'SCORE QUAL'!R30,"-",'SCORE QUAL'!S30,")")) ->  | L31: Qualifié | M31: =I13 -> 
L32: Qualifié | M32: =I20 -> 
D33: TS4-TS13 | E33: (4) | F33: =IF('SCORE QUAL'!K11='SCORE QUAL'!M11,"",CONCATENATE('SCORE QUAL'!K11," / ",'SCORE QUAL'!M11," (",'SCORE QUAL'!N11,"-",'SCORE QUAL'!O11,")"," (",'SCORE QUAL'!P11,"-",'SCORE QUAL'!Q11,")"," (",'SCORE QUAL'!R11,"-",'SCORE QUAL'!S11,")")) ->  | L33: Qualifié | M33: =I27 -> 
B34: T4 | C34: =CONCATENATE('EMARG Tableau Qualif'!C12," / ",'EMARG Tableau Qualif'!G12) -> T / 4 | D34: TS5-TS12 | E34: (8) | F34: =IF('SCORE QUAL'!K15='SCORE QUAL'!M15,"",CONCATENATE('SCORE QUAL'!K15," / ",'SCORE QUAL'!M15," (",'SCORE QUAL'!N15,"-",'SCORE QUAL'!O15,")"," (",'SCORE QUAL'!P15,"-",'SCORE QUAL'!Q15,")"," (",'SCORE QUAL'!R15,"-",'SCORE QUAL'!S15,")")) ->  | H34: 1 | I34: ='SCORE QUAL'!AJ23 ->  | J34: Qualifié | L34: Qualifié | M34: =I34 -> 
A35: D | B35: T5 | C35: =CONCATENATE('EMARG Tableau Qualif'!C13," / ",'EMARG Tableau Qualif'!G13) -> T / 5 | D35: TS5-TS13 | E35: (12) | F35: =IF('SCORE QUAL'!K19='SCORE QUAL'!M19,"",CONCATENATE('SCORE QUAL'!K19," / ",'SCORE QUAL'!M19," (",'SCORE QUAL'!N19,"-",'SCORE QUAL'!O19,")"," (",'SCORE QUAL'!P19,"-",'SCORE QUAL'!Q19,")"," (",'SCORE QUAL'!R19,"-",'SCORE QUAL'!S19,")")) ->  | H35: 2 | I35: ='SCORE QUAL'!AJ24 ->  | L35: Qualifié | M35: =M16 -> 
B36: T12 | C36: =CONCATENATE('EMARG Tableau Qualif'!C20," / ",'EMARG Tableau Qualif'!G20) -> T / 12 | D36: TS4-TS12 | E36: (16) | F36: =IF('SCORE QUAL'!K23='SCORE QUAL'!M23,"",CONCATENATE('SCORE QUAL'!K23," / ",'SCORE QUAL'!M23," (",'SCORE QUAL'!N23,"-",'SCORE QUAL'!O23,")"," (",'SCORE QUAL'!P23,"-",'SCORE QUAL'!Q23,")"," (",'SCORE QUAL'!R23,"-",'SCORE QUAL'!S23,")")) ->  | H36: 3 | I36: ='SCORE QUAL'!AJ25 ->  | J36: 17 | L36: Qualifié | M36: =M24 -> 
B37: T13 | C37: =CONCATENATE('EMARG Tableau Qualif'!C21," / ",'EMARG Tableau Qualif'!G21) -> T / 13 | D37: TS12-TS13 | E37: (20) | F37: =IF('SCORE QUAL'!K27='SCORE QUAL'!M27,"",CONCATENATE('SCORE QUAL'!K27," / ",'SCORE QUAL'!M27," (",'SCORE QUAL'!N27,"-",'SCORE QUAL'!O27,")"," (",'SCORE QUAL'!P27,"-",'SCORE QUAL'!Q27,")"," (",'SCORE QUAL'!R27,"-",'SCORE QUAL'!S27,")")) ->  | H37: 4 | I37: ='SCORE QUAL'!AJ26 ->  | J37: 25 | L37: 17 | M37: ='SCORE QUAL'!U32 -> 
D38: TS4-TS5 | E38: (24) | F38: =IF('SCORE QUAL'!K31='SCORE QUAL'!M31,"",CONCATENATE('SCORE QUAL'!K31," / ",'SCORE QUAL'!M31," (",'SCORE QUAL'!N31,"-",'SCORE QUAL'!O31,")"," (",'SCORE QUAL'!P31,"-",'SCORE QUAL'!Q31,")"," (",'SCORE QUAL'!R31,"-",'SCORE QUAL'!S31,")")) ->  | L38: 17 | M38: ='SCORE QUAL'!U33 -> 
L39: 17 | M39: =I15 -> 
L40: 17 | M40: =I22 -> 
L41: 17 | M41: =I29 -> 
L42: 17 | M42: =I36 -> 
L43: 25 | M43: =I16 -> 
L44: 25 | M44: =I23 -> 
L45: 25 | M45: =I30 -> 
L46: 25 | M46: =I37 -> 

Sheet EMARG M Tableau PRIN
D2: =IF('LISTE ENGAGES'!R3="",'LISTE ENGAGES'!Q3,'LISTE ENGAGES'!R3) -> APPELATION TOURNOI | N2: =IF('LISTE ENGAGES'!R10="",'LISTE ENGAGES'!Q10,'LISTE ENGAGES'!R10) -> ORGANISATEUR
D4: =IF('LISTE ENGAGES'!R4="",'LISTE ENGAGES'!Q4,'LISTE ENGAGES'!R4) -> LIEU | H4: =IF('LISTE ENGAGES'!R8="",'LISTE ENGAGES'!Q8,'LISTE ENGAGES'!R8) -> DATE FIN | M4: =IF('LISTE ENGAGES'!R9="",'LISTE ENGAGES'!Q9,'LISTE ENGAGES'!R9) -> GENRE
D5: =IF('LISTE ENGAGES'!R5="",'LISTE ENGAGES'!Q5,'LISTE ENGAGES'!R5) -> TYPE
D6: FEUILLE EMARGEMENT
A8: N° | C8: NOM | D8: PRENOM | E8: LIC | F8: CLUB | G8: NOM | H8: PRENOM | I8: LIC | J8: CLUB | K8: pts | L8: tir | M8: SIGNATURE JOUEUR1 | N8: SIGNATURE JOUEUR2
A9: 1 | C9: T | G9: 1
A10: 2 | C10: T | G10: 2
A11: 3 | C11: T | G11: 3
A12: 4 | C12: T | G12: 4
A13: 5 | C13: T | G13: 5
A14: 6 | C14: T | G14: 6
A15: 7 | C15: T | G15: 7
A16: 8 | C16: T | G16: 8
A17: 9 | C17: T | G17: 9
A18: 10 | C18: T | G18: 10
A19: 11 | C19: T | G19: 11
A20: 12 | C20: T | G20: 12
A21: 13 | C21: T | G21: 13
A22: 14 | C22: T | G22: 14
A23: 15 | C23: T | G23: 15
A24: 16 | C24: T | G24: 16
C26: Copier/coller selon LISTE ENGAGES en fonction des équipes confirmées APRES les qualifications
C27: ATTENTION : Respecter l'ordre des têtes de séries en fonction des points et classement de la LISTE ENGAGES
C28: Ex: Si Sur LISTE ENGAGES, l'équipe 9 absente, la numéro 10 devient la numéro 9 dans EMARG
C29: EX: Si toutes les equipes du tableau principal sont confirmées, les équipes issues qualifications sont replacées en fonction de leurs points, en bas de tableau

Sheet PLANNING PS 16
H2: =IF('LISTE ENGAGES'!R3="",'LISTE ENGAGES'!Q3,'LISTE ENGAGES'!R3) -> APPELATION TOURNOI | Q2: =IF('LISTE ENGAGES'!$R$10<>"",'LISTE ENGAGES'!$R$10,'LISTE ENGAGES'!$Q$10) -> ORGANISATEUR
B4: J2 | C4: HEURE DEBUT | E4: 09:00:00
C5: DUREE MATCH | E5: 00:50:00
H6: =IF('LISTE ENGAGES'!R4="",'LISTE ENGAGES'!Q4,'LISTE ENGAGES'!R4) -> LIEU | K6: =IF('LISTE ENGAGES'!R8="",'LISTE ENGAGES'!Q8,'LISTE ENGAGES'!R8) -> DATE FIN | O6: =IF('LISTE ENGAGES'!R9="",'LISTE ENGAGES'!Q9,'LISTE ENGAGES'!R9) -> GENRE
H7: =IF('LISTE ENGAGES'!R5="",'LISTE ENGAGES'!Q5,'LISTE ENGAGES'!R5) -> TYPE
H8: PLANNING DES RENCONTRES
B9: J3 | C9: HEURE DEBUT | E9: 09:00:00
C10: DUREE MATCH | E10: 01:00:00
E16: MATCH | F16: n° | G16: TER. | H16: E1 | I16: ./. | J16: E2 | K16: ARB | L16: MATCH | M16: n° | N16: TER. | O16: E1 | P16: ./. | Q16: E2 | R16: ARB | S16: 2*21, SD 15
C17: JOUR 2 | D17: =E4 -> 09:00:00 | E17: AM1 | F17: 1 | H17: ='TAB 16 PS PRINC'!C13 -> T / 1 | J17: ='TAB 16 PS PRINC'!C16 -> T / 16 | L17: CM1 | M17: 2 | O17: ='TAB 16 PS PRINC'!C27 -> T / 3 | Q17: ='TAB 16 PS PRINC'!C30 -> T / 14 | S17: 2*21, SD 15
D18: =D17+$E$5 -> 09:50:00 | E18: BM1 | F18: 3 | H18: ='TAB 16 PS PRINC'!C20 -> T / 2 | J18: ='TAB 16 PS PRINC'!C23 -> T / 15 | L18: DM1 | M18: 4 | O18: ='TAB 16 PS PRINC'!C34 -> T / 4 | Q18: ='TAB 16 PS PRINC'!C37 -> T / 13 | S18: 2*21, SD 15
D19: =D18+$E$5 -> 10:40:00 | E19: AM2 | F19: 5 | H19: ='TAB 16 PS PRINC'!C14 -> T / 8 | J19: ='TAB 16 PS PRINC'!C15 -> T / 9 | L19: CM2 | M19: 6 | O19: ='TAB 16 PS PRINC'!C28 -> T / 6 | Q19: ='TAB 16 PS PRINC'!C29 -> T / 11 | S19: 2*21, SD 15
D20: 11:30:00 | E20: BM2 | F20: 7 | H20: ='TAB 16 PS PRINC'!C21 -> T / 7 | J20: ='TAB 16 PS PRINC'!C22 -> T / 10 | L20: DM2 | M20: 8 | O20: ='TAB 16 PS PRINC'!C35 -> T / 5 | Q20: ='TAB 16 PS PRINC'!C36 -> T /12 | S20: 2*21, SD 15
D21: 12:20:00 | E21: AM3 | F21: 9 | H21: ='TAB 16 PS PRINC'!C14 -> T / 8 | J21: ='TAB 16 PS PRINC'!C16 -> T / 16 | L21: CM3 | M21: 10 | O21: ='TAB 16 PS PRINC'!C28 -> T / 6 | Q21: ='TAB 16 PS PRINC'!C30 -> T / 14 | S21: 2*21, SD 15
D22: 13:10:00 | E22: BM3 | F22: 11 | H22: ='TAB 16 PS PRINC'!C21 -> T / 7 | J22: ='TAB 16 PS PRINC'!C23 -> T / 15 | L22: DM3 | M22: 12 | O22: ='TAB 16 PS PRINC'!C35 -> T / 5 | Q22: ='TAB 16 PS PRINC'!C37 -> T / 13 | S22: 2*21, SD 15
D23: 14:00:00 | E23: AM4 | F23: 13 | H23: ='TAB 16 PS PRINC'!C13 -> T / 1 | J23: ='TAB 16 PS PRINC'!C15 -> T / 9 | L23: CM4 | M23: 14 | O23: ='TAB 16 PS PRINC'!C27 -> T / 3 | Q23: ='TAB 16 PS PRINC'!C29 -> T / 11 | S23: 2*21, SD 15
D24: 14:50:00 | E24: BM4 | F24: 15 | H24: ='TAB 16 PS PRINC'!C20 -> T / 2 | J24: ='TAB 16 PS PRINC'!C22 -> T / 10 | L24: DM4 | M24: 16 | O24: ='TAB 16 PS PRINC'!C34 -> T / 4 | Q24: ='TAB 16 PS PRINC'!C36 -> T /12 | S24: 2*21, SD 15
D25: 15:40:00 | E25: AM5 | F25: 17 | H25: ='TAB 16 PS PRINC'!C15 -> T / 9 | J25: ='TAB 16 PS PRINC'!C16 -> T / 16 | L25: CM5 | M25: 18 | O25: ='TAB 16 PS PRINC'!C29 -> T / 11 | Q25: ='TAB 16 PS PRINC'!C30 -> T / 14 | S25: 2*21, SD 15
D26: 16:30:00 | E26: BM5 | F26: 19 | H26: ='TAB 16 PS PRINC'!C22 -> T / 10 | J26: ='TAB 16 PS PRINC'!C23 -> T / 15 | L26: DM5 | M26: 20 | O26: ='TAB 16 PS PRINC'!C36 -> T /12 | Q26: ='TAB 16 PS PRINC'!C37 -> T / 13 | S26: 2*21, SD 15
D27: 17:20:00 | E27: AM6 | F27: 21 | H27: ='TAB 16 PS PRINC'!C13 -> T / 1 | J27: ='TAB 16 PS PRINC'!C14 -> T / 8 | L27: CM6 | M27: 22 | O27: ='TAB 16 PS PRINC'!C27 -> T / 3 | Q27: ='TAB 16 PS PRINC'!C28 -> T / 6 | S27: 2*21, SD 15
D28: 18:10:00 | E28: BM6 | F28: 23 | H28: ='TAB 16 PS PRINC'!C20 -> T / 2 | J28: ='TAB 16 PS PRINC'!C21 -> T / 7 | L28: DM6 | M28: 24 | O28: ='TAB 16 PS PRINC'!C34 -> T / 4 | Q28: ='TAB 16 PS PRINC'!C35 -> T / 5 | S28: 2*21, SD 15
D29: 19:00:00 | E29: FIN
E31: MATCH | G31: TER. | H31: E1 | I31: ./. | J31: E2 | K31: ARB | L31: MATCH | N31: TER. | O31: E1 | P31: ./. | Q31: E2 | R31: ARB | S31: 2*21, SD 15
C32: JOUR 3 | D32: =E9 -> 09:00:00 | E32: 1/4 M1 | F32: 29 | H32: ='TAB 16 PS PRINC'!N12 -> A1 | J32: ='TAB 16 PS PRINC'!N16 ->  | L32: 1/4 M2 | M32: 30 | O32: ='TAB 16 PS PRINC'!N20 ->  | Q32: ='TAB 16 PS PRINC'!N24 -> D1 | S32: 2*21, SD 15
D33: =D32+$E$10 -> 10:00:00 | E33: 1/4 M3 | F33: 31 | H33: ='TAB 16 PS PRINC'!N27 -> C1 | J33: ='TAB 16 PS PRINC'!N31 ->  | L33: 1/4 M4 | M33: 32 | O33: ='TAB 16 PS PRINC'!N39 -> B1 | Q33: ='TAB 16 PS PRINC'!N35 ->  | S33: 2*21, SD 15
D34: =D33+$E$10 -> 11:00:00 | E34: DEMI | F34: 33 | H34: ='TAB 16 PS PRINC'!P14 ->  | J34: ='TAB 16 PS PRINC'!P23 ->  | S34: 2*21, SD 15
D35: 12:00:00 | E35: DEMI | F35: 34 | H35: ='TAB 16 PS PRINC'!P29 ->  | J35: ='TAB 16 PS PRINC'!P37 ->  | S35: 2*21, SD 15
D36: 13:00:00
D37: 14:00:00 | E37: PETITE FINALE | F37: 35 | H37: ='TAB 16 PS PRINC'!R40 ->  | J37: ='TAB 16 PS PRINC'!R45 ->  | S37: 2*21, SD 15
D38: 15:00:00 | E38: FINALE | F38: 36 | H38: ='TAB 16 PS PRINC'!R16 -> 0 | J38: ='TAB 16 PS PRINC'!R35 -> 0 | S38: 2*21, SD 15
D39: 16:00:00 | E39: PODIUM

Sheet SCORE PRIN
E1: TABLEAU DE SAISIE DE RESULTATS
A3: DEBUT J1 | B3: 09:00:00 | E3: Saisir le résultats des setas dans les cases bordurées et colorées uniquement
A4: TEMPS | B4: 00:50:00
A5: DEBUT J2 | B5: 09:00:00
C7: PHASE | D7: JOUR | E7: N° MATCH | F7: HEURE | G7: TER | H7: EQ1 | J7: EQ2 | K7: SCORE EQ1 | M7: SCORE EQ2 | N7: SET 1 EQ1 | O7: SET 1 EQ2 | P7: SET 2 EQ1 | Q7: SET 2 EQ2 | R7: SET 3 EQ1 | S7: SET 3 EQ2 | T7: POS 1 | U7: POS 2 | Y7: A | Z7: PTS | AA7: S+ | AB7: S- | AC7: P+ | AD7: P- | AE7: CS | AF7: CP | AG7: CL.I | AH7: RG | AJ7: CLA
C8: A | D8: 1 | E8: 1 | F8: =B3 -> 09:00:00 | G8: 1 | H8: ='TAB 16 PS PRINC'!C13 -> T / 1 | I8: / | J8: ='TAB 16 PS PRINC'!C16 -> T / 16 | K8: =SUM(IF(N8>O8,1,0),IF(P8>Q8,1,0),IF(R8>S8,1,0)) -> 0 | L8: / | M8: =SUM(IF(O8>N8,1,0),IF(Q8>P8,1,0),IF(S8>R8,1,0)) -> 0 | T8: =IF(K8=M8,"",IF(K8>M8,H8,J8)) ->  | U8: =IF(K8=M8,"",IF(K8<M8,H8,J8)) ->  | Y8: ='TAB 16 PS PRINC'!C13 -> T / 1 | Z8: =COUNTIF(PLACE1,Y8)*2+COUNTIF(PLACE2,Y8) -> 0 | AA8: =SUMIF(LISTEE1,Y8,(SCEQ1))+SUMIF(LISTEE2,Y8,(SCEQ2)) -> 0 | AB8: =SUMIF(LISTEE1,Y8,(SCEQ2))+SUMIF(LISTEE2,Y8,(SCEQ1)) -> 0 | AC8: =(SUMPRODUCT((LISTEE1=Y8)*((S1EQ1)+(S2EQ1)+(S3EQ1))))+(SUMPRODUCT((LISTEE2=Y8)*((S1EQ2)+(S2EQ2)+(S3EQ3)))) -> 0 | AD8: =(SUMPRODUCT((LISTEE2=Y8)*((S1EQ1)+(S2EQ1)+(S3EQ1))))+(SUMPRODUCT((LISTEE1=Y8)*((S1EQ2)+(S2EQ2)+(S3EQ3)))) -> 0 | AE8: =IFERROR(AA8/AB8,0) -> 0 | AF8: =IFERROR(AC8/AD8,0) -> 0 | AG8: =Z8+AE8/100+AF8/100 -> 0 | AH8: =IF(Z8=0,"",RANK(AG8,$AG$8:$AG$11)) ->  | AI8: 1 | AJ8: =IF(Z8=0,"",IF($AH$8=AI8,$Y$8,IF($AH$9=AI8,$Y$9,IF($AH$10=AI8,$Y$10,IF($AH$11=AI8,$Y$11))))) -> 
C9: B | D9: 1 | E9: 2 | F9: =F8+$B$4 -> 09:50:00 | G9: 1 | H9: ='TAB 16 PS PRINC'!C20 -> T / 2 | I9: / | J9: ='TAB 16 PS PRINC'!C23 -> T / 15 | K9: =SUM(IF(N9>O9,1,0),IF(P9>Q9,1,0),IF(R9>S9,1,0)) -> 0 | L9: / | M9: =SUM(IF(O9>N9,1,0),IF(Q9>P9,1,0),IF(S9>R9,1,0)) -> 0 | T9: =IF(K9=M9,"",IF(K9>M9,H9,J9)) ->  | U9: =IF(K9=M9,"",IF(K9<M9,H9,J9)) ->  | Y9: ='TAB 16 PS PRINC'!C14 -> T / 8 | Z9: =COUNTIF(PLACE1,Y9)*2+COUNTIF(PLACE2,Y9) -> 0 | AA9: =SUMIF(LISTEE1,Y9,(SCEQ1))+SUMIF(LISTEE2,Y9,(SCEQ2)) -> 0 | AB9: =SUMIF(LISTEE1,Y9,(SCEQ2))+SUMIF(LISTEE2,Y9,(SCEQ1)) -> 0 | AC9: =(SUMPRODUCT((LISTEE1=Y9)*((S1EQ1)+(S2EQ1)+(S3EQ1))))+(SUMPRODUCT((LISTEE2=Y9)*((S1EQ2)+(S2EQ2)+(S3EQ3)))) -> 0 | AD9: =(SUMPRODUCT((LISTEE2=Y9)*((S1EQ1)+(S2EQ1)+(S3EQ1))))+(SUMPRODUCT((LISTEE1=Y9)*((S1EQ2)+(S2EQ2)+(S3EQ3)))) -> 0 | AE9: =IFERROR(AA9/AB9,0) -> 0 | AF9: =IFERROR(AC9/AD9,0) -> 0 | AG9: =Z9+AE9/100+AF9/100 -> 0 | AH9: =IF(Z9=0,"",RANK(AG9,$AG$8:$AG$11)) ->  | AI9: 2 | AJ9: =IF(Z9=0,"",IF($AH$8=AI9,$Y$8,IF($AH$9=AI9,$Y$9,IF($AH$10=AI9,$Y$10,IF($AH$11=AI9,$Y$11))))) -> 
C10: C | D10: 1 | E10: 3 | F10: =B3 -> 09:00:00 | G10: 2 | H10: ='TAB 16 PS PRINC'!C27 -> T / 3 | I10: / | J10: ='TAB 16 PS PRINC'!C30 -> T / 14 | K10: 0 | L10: / | M10: 0 | Y10: ='TAB 16 PS PRINC'!C15 -> T / 9 | Z10: =COUNTIF(PLACE1,Y10)*2+COUNTIF(PLACE2,Y10) -> 0 | AA10: =SUMIF(LISTEE1,Y10,(SCEQ1))+SUMIF(LISTEE2,Y10,(SCEQ2)) -> 0 | AB10: =SUMIF(LISTEE1,Y10,SCEQ2)+SUMIF(LISTEE2,Y10,SCEQ1) -> 0 | AC10: =(SUMPRODUCT((LISTEE1=Y10)*((S1EQ1)+(S2EQ1)+(S3EQ1))))+(SUMPRODUCT((LISTEE2=Y10)*((S1EQ2)+(S2EQ2)+(S3EQ3)))) -> 0 | AD10: =(SUMPRODUCT((LISTEE2=Y10)*((S1EQ1)+(S2EQ1)+(S3EQ1))))+(SUMPRODUCT((LISTEE1=Y10)*((S1EQ2)+(S2EQ2)+(S3EQ3)))) -> 0 | AE10: 0 | AF10: 0 | AG10: 0 | AH10: =IF(Z10=0,"",RANK(AG10,$AG$8:$AG$11)) ->  | AI10: 3 | AJ10: =IF(Z10=0,"",IF($AH$8=AI10,$Y$8,IF($AH$9=AI10,$Y$9,IF($AH$10=AI10,$Y$10,IF($AH$11=AI10,$Y$11))))) -> 
C11: D | D11: 1 | E11: 4 | F11: =F10+$B$4 -> 09:50:00 | G11: 2 | H11: ='TAB 16 PS PRINC'!C34 -> T / 4 | I11: / | J11: ='TAB 16 PS PRINC'!C37 -> T / 13 | K11: 0 | L11: / | M11: 0 | Y11: ='TAB 16 PS PRINC'!C16 -> T / 16 | Z11: =COUNTIF(PLACE1,Y11)*2+COUNTIF(PLACE2,Y11) -> 0 | AA11: =SUMIF(LISTEE1,Y11,(SCEQ1))+SUMIF(LISTEE2,Y11,(SCEQ2)) -> 0 | AB11: =SUMIF(LISTEE1,Y11,SCEQ2)+SUMIF(LISTEE2,Y11,SCEQ1) -> 0 | AC11: =(SUMPRODUCT((LISTEE1=Y11)*((S1EQ1)+(S2EQ1)+(S3EQ1))))+(SUMPRODUCT((LISTEE2=Y11)*((S1EQ2)+(S2EQ2)+(S3EQ3)))) -> 0 | AD11: =(SUMPRODUCT((LISTEE2=Y11)*((S1EQ1)+(S2EQ1)+(S3EQ1))))+(SUMPRODUCT((LISTEE1=Y11)*((S1EQ2)+(S2EQ2)+(S3EQ3)))) -> 0 | AE11: 0 | AF11: 0 | AG11: 0 | AH11: =IF(Z11=0,"",RANK(AG11,$AG$8:$AG$11)) ->  | AI11: 4 | AJ11: =IF(Z11=0,"",IF($AH$8=AI11,$Y$8,IF($AH$9=AI11,$Y$9,IF($AH$10=AI11,$Y$10,IF($AH$11=AI11,$Y$11))))) -> 
C12: A | D12: 1 | E12: 5 | F12: =F9+B4 -> 10:40:00 | G12: 1 | H12: ='TAB 16 PS PRINC'!C14 -> T / 8 | I12: / | J12: ='TAB 16 PS PRINC'!C15 -> T / 9 | K12: 0 | L12: / | M12: 0 | Y12: B
C13: B | D13: 1 | E13: 6 | F13: =F12+B4 -> 11:30:00 | G13: 1 | H13: ='TAB 16 PS PRINC'!C21 -> T / 7 | I13: / | J13: ='TAB 16 PS PRINC'!C22 -> T / 10 | K13: 0 | L13: / | M13: 0 | Y13: ='TAB 16 PS PRINC'!C20 -> T / 2 | Z13: =COUNTIF(PLACE1,Y13)*2+COUNTIF(PLACE2,Y13) -> 0 | AA13: =SUMIF(LISTEE1,Y13,(SCEQ1))+SUMIF(LISTEE2,Y13,(SCEQ2)) -> 0 | AB13: =SUMIF(LISTEE1,Y13,SCEQ2)+SUMIF(LISTEE2,Y13,SCEQ1) -> 0 | AC13: =(SUMPRODUCT((LISTEE1=Y13)*((S1EQ1)+(S2EQ1)+(S3EQ1))))+(SUMPRODUCT((LISTEE2=Y13)*((S1EQ2)+(S2EQ2)+(S3EQ3)))) -> 0 | AD13: =(SUMPRODUCT((LISTEE2=Y13)*((S1EQ1)+(S2EQ1)+(S3EQ1))))+(SUMPRODUCT((LISTEE1=Y13)*((S1EQ2)+(S2EQ2)+(S3EQ3)))) -> 0 | AE13: 0 | AF13: 0 | AG13: 0 | AH13: =IF(Z13=0,"",RANK(AG13,$AG$13:$AG$16)) ->  | AI13: 1 | AJ13: =IF(Z13=0,"",IF($AH$13=AI13,$Y$13,IF($AH$14=AI13,$Y$14,IF($AH$15=AI13,$Y$15,IF($AH$16=AI13,$Y$16))))) -> 
C14: C | D14: 1 | E14: 7 | F14: =F11+$B$4 -> 10:40:00 | G14: 2 | H14: ='TAB 16 PS PRINC'!C28 -> T / 6 | I14: / | J14: ='TAB 16 PS PRINC'!C29 -> T / 11 | K14: =SUM(IF(N14>O14,1,0),IF(P14>Q14,1,0),IF(R14>S14,1,0)) -> 0 | L14: / | M14: 0 | T14: =IF(K14=M14,"",IF(K14>M14,H14,J14)) ->  | Y14: ='TAB 16 PS PRINC'!C21 -> T / 7 | Z14: =COUNTIF(PLACE1,Y14)*2+COUNTIF(PLACE2,Y14) -> 0 | AA14: =SUMIF(LISTEE1,Y14,(SCEQ1))+SUMIF(LISTEE2,Y14,(SCEQ2)) -> 0 | AB14: =SUMIF(LISTEE1,Y14,SCEQ2)+SUMIF(LISTEE2,Y14,SCEQ1) -> 0 | AC14: =(SUMPRODUCT((LISTEE1=Y14)*((S1EQ1)+(S2EQ1)+(S3EQ1))))+(SUMPRODUCT((LISTEE2=Y14)*((S1EQ2)+(S2EQ2)+(S3EQ3)))) -> 0 | AD14: =(SUMPRODUCT((LISTEE2=Y14)*((S1EQ1)+(S2EQ1)+(S3EQ1))))+(SUMPRODUCT((LISTEE1=Y14)*((S1EQ2)+(S2EQ2)+(S3EQ3)))) -> 0 | AE14: 0 | AF14: 0 | AG14: 0 | AH14: =IF(Z14=0,"",RANK(AG14,$AG$13:$AG$16)) ->  | AI14: 2 | AJ14: =IF(Z14=0,"",IF($AH$13=AI14,$Y$13,IF($AH$14=AI14,$Y$14,IF($AH$15=AI14,$Y$15,IF($AH$16=AI14,$Y$16))))) -> 
C15: D | D15: 1 | E15: 8 | F15: =F14+$B$4 -> 11:30:00 | G15: 2 | H15: ='TAB 16 PS PRINC'!C35 -> T / 5 | I15: / | J15: ='TAB 16 PS PRINC'!C36 -> T /12 | K15: 0 | L15: / | M15: 0 | Y15: ='TAB 16 PS PRINC'!C22 -> T / 10 | Z15: =COUNTIF(PLACE1,Y15)*2+COUNTIF(PLACE2,Y15) -> 0 | AA15: =SUMIF(LISTEE1,Y15,(SCEQ1))+SUMIF(LISTEE2,Y15,(SCEQ2)) -> 0 | AB15: =SUMIF(LISTEE1,Y15,SCEQ2)+SUMIF(LISTEE2,Y15,SCEQ1) -> 0 | AC15: =(SUMPRODUCT((LISTEE1=Y15)*((S1EQ1)+(S2EQ1)+(S3EQ1))))+(SUMPRODUCT((LISTEE2=Y15)*((S1EQ2)+(S2EQ2)+(S3EQ3)))) -> 0 | AD15: =(SUMPRODUCT((LISTEE2=Y15)*((S1EQ1)+(S2EQ1)+(S3EQ1))))+(SUMPRODUCT((LISTEE1=Y15)*((S1EQ2)+(S2EQ2)+(S3EQ3)))) -> 0 | AE15: 0 | AF15: 0 | AG15: 0 | AH15: =IF(Z15=0,"",RANK(AG15,$AG$13:$AG$16)) ->  | AI15: 3 | AJ15: =IF(Z15=0,"",IF($AH$13=AI15,$Y$13,IF($AH$14=AI15,$Y$14,IF($AH$15=AI15,$Y$15,IF($AH$16=AI15,$Y$16))))) -> 
C16: A | D16: 1 | E16: 9 | F16: =F13+$B$4 -> 12:20:00 | G16: 1 | H16: T / 8 | I16: / | J16: ='TAB 16 PS PRINC'!C16 -> T / 16 | K16: 0 | L16: / | M16: 0 | Y16: ='TAB 16 PS PRINC'!C23 -> T / 15 | Z16: =COUNTIF(PLACE1,Y16)*2+COUNTIF(PLACE2,Y16) -> 0 | AA16: =SUMIF(LISTEE1,Y16,(SCEQ1))+SUMIF(LISTEE2,Y16,(SCEQ2)) -> 0 | AB16: =SUMIF(LISTEE1,Y16,SCEQ2)+SUMIF(LISTEE2,Y16,SCEQ1) -> 0 | AC16: =(SUMPRODUCT((LISTEE1=Y16)*((S1EQ1)+(S2EQ1)+(S3EQ1))))+(SUMPRODUCT((LISTEE2=Y16)*((S1EQ2)+(S2EQ2)+(S3EQ3)))) -> 0 | AD16: =(SUMPRODUCT((LISTEE2=Y16)*((S1EQ1)+(S2EQ1)+(S3EQ1))))+(SUMPRODUCT((LISTEE1=Y16)*((S1EQ2)+(S2EQ2)+(S3EQ3)))) -> 0 | AE16: 0 | AF16: 0 | AG16: 0 | AH16: =IF(Z16=0,"",RANK(AG16,$AG$13:$AG$16)) ->  | AI16: 4 | AJ16: =IF(Z16=0,"",IF($AH$13=AI16,$Y$13,IF($AH$14=AI16,$Y$14,IF($AH$15=AI16,$Y$15,IF($AH$16=AI16,$Y$16))))) -> 
C17: B | D17: 1 | E17: 10 | F17: =F16+$B$4 -> 13:10:00 | G17: 1 | H17: T / 7 | I17: / | J17: ='TAB 16 PS PRINC'!C23 -> T / 15 | K17: 0 | L17: / | M17: 0 | Y17: C
C18: C | D18: 1 | E18: 11 | F18: =F15+$B$4 -> 12:20:00 | G18: 2 | H18: T / 6 | I18: / | J18: ='TAB 16 PS PRINC'!C30 -> T / 14 | K18: 0 | L18: / | M18: 0 | Y18: ='TAB 16 PS PRINC'!C27 -> T / 3 | Z18: =COUNTIF(PLACE1,Y18)*2+COUNTIF(PLACE2,Y18) -> 0 | AA18: =SUMIF(LISTEE1,Y18,(SCEQ1))+SUMIF(LISTEE2,Y18,(SCEQ2)) -> 0 | AB18: =SUMIF(LISTEE1,Y18,SCEQ2)+SUMIF(LISTEE2,Y18,SCEQ1) -> 0 | AC18: =(SUMPRODUCT((LISTEE1=Y18)*((S1EQ1)+(S2EQ1)+(S3EQ1))))+(SUMPRODUCT((LISTEE2=Y18)*((S1EQ2)+(S2EQ2)+(S3EQ3)))) -> 0 | AD18: =(SUMPRODUCT((LISTEE2=Y18)*((S1EQ1)+(S2EQ1)+(S3EQ1))))+(SUMPRODUCT((LISTEE1=Y18)*((S1EQ2)+(S2EQ2)+(S3EQ3)))) -> 0 | AE18: =IFERROR(AA18/AB18,0) -> 0 | AF18: 0 | AG18: =Z18+AE18/100+AF18/100 -> 0 | AH18: =IF(Z18=0,"",RANK(AG18,$AG$18:$AG$21)) ->  | AI18: 1 | AJ18: =IF(Z18=0,"",IF($AH$18=AI18,$Y$18,IF($AH$19=AI18,$Y$19,IF($AH$20=AI18,$Y$20,IF($AH$21=AI18,$Y$21))))) -> 
C19: D | D19: 1 | E19: 12 | F19: =F18+$B$4 -> 13:10:00 | G19: 2 | H19: T / 5 | I19: / | J19: ='TAB 16 PS PRINC'!C37 -> T / 13 | K19: 0 | L19: / | M19: 0 | Y19: ='TAB 16 PS PRINC'!C28 -> T / 6 | Z19: =COUNTIF(PLACE1,Y19)*2+COUNTIF(PLACE2,Y19) -> 0 | AA19: =SUMIF(LISTEE1,Y19,(SCEQ1))+SUMIF(LISTEE2,Y19,(SCEQ2)) -> 0 | AB19: =SUMIF(LISTEE1,Y19,SCEQ2)+SUMIF(LISTEE2,Y19,SCEQ1) -> 0 | AC19: =(SUMPRODUCT((LISTEE1=Y19)*((S1EQ1)+(S2EQ1)+(S3EQ1))))+(SUMPRODUCT((LISTEE2=Y19)*((S1EQ2)+(S2EQ2)+(S3EQ3)))) -> 0 | AD19: =(SUMPRODUCT((LISTEE2=Y19)*((S1EQ1)+(S2EQ1)+(S3EQ1))))+(SUMPRODUCT((LISTEE1=Y19)*((S1EQ2)+(S2EQ2)+(S3EQ3)))) -> 0 | AE19: 0 | AF19: 0 | AG19: =Z19+AE19/100+AF19/100 -> 0 | AH19: =IF(Z19=0,"",RANK(AG19,$AG$18:$AG$21)) ->  | AI19: 2 | AJ19: =IF(Z19=0,"",IF($AH$18=AI19,$Y$18,IF($AH$19=AI19,$Y$19,IF($AH$20=AI19,$Y$20,IF($AH$21=AI19,$Y$21))))) -> 
C20: A | D20: 1 | E20: 13 | F20: =F17+$B$4 -> 14:00:00 | G20: 1 | H20: T / 1 | I20: / | J20: ='TAB 16 PS PRINC'!C15 -> T / 9 | K20: 0 | L20: / | M20: 0 | Y20: ='TAB 16 PS PRINC'!C29 -> T / 11 | Z20: =COUNTIF(PLACE1,Y20)*2+COUNTIF(PLACE2,Y20) -> 0 | AA20: =SUMIF(LISTEE1,Y20,(SCEQ1))+SUMIF(LISTEE2,Y20,(SCEQ2)) -> 0 | AB20: =SUMIF(LISTEE1,Y20,SCEQ2)+SUMIF(LISTEE2,Y20,SCEQ1) -> 0 | AC20: =(SUMPRODUCT((LISTEE1=Y20)*((S1EQ1)+(S2EQ1)+(S3EQ1))))+(SUMPRODUCT((LISTEE2=Y20)*((S1EQ2)+(S2EQ2)+(S3EQ3)))) -> 0 | AD20: =(SUMPRODUCT((LISTEE2=Y20)*((S1EQ1)+(S2EQ1)+(S3EQ1))))+(SUMPRODUCT((LISTEE1=Y20)*((S1EQ2)+(S2EQ2)+(S3EQ3)))) -> 0 | AE20: 0 | AF20: 0 | AG20: 0 | AI20: 3 | AJ20: =IF(Z20=0,"",IF($AH$18=AI20,$Y$18,IF($AH$19=AI20,$Y$19,IF($AH$20=AI20,$Y$20,IF($AH$21=AI20,$Y$21))))) -> 
C21: B | D21: 1 | E21: 14 | F21: =F20+$B$4 -> 14:50:00 | G21: 1 | H21: T / 2 | I21: / | J21: ='TAB 16 PS PRINC'!C22 -> T / 10 | K21: 0 | L21: / | M21: 0 | Y21: ='TAB 16 PS PRINC'!C30 -> T / 14 | Z21: =COUNTIF(PLACE1,Y21)*2+COUNTIF(PLACE2,Y21) -> 0 | AA21: =SUMIF(LISTEE1,Y21,(SCEQ1))+SUMIF(LISTEE2,Y21,(SCEQ2)) -> 0 | AB21: =SUMIF(LISTEE1,Y21,SCEQ2)+SUMIF(LISTEE2,Y21,SCEQ1) -> 0 | AC21: =(SUMPRODUCT((LISTEE1=Y21)*((S1EQ1)+(S2EQ1)+(S3EQ1))))+(SUMPRODUCT((LISTEE2=Y21)*((S1EQ2)+(S2EQ2)+(S3EQ3)))) -> 0 | AD21: =(SUMPRODUCT((LISTEE2=Y21)*((S1EQ1)+(S2EQ1)+(S3EQ1))))+(SUMPRODUCT((LISTEE1=Y21)*((S1EQ2)+(S2EQ2)+(S3EQ3)))) -> 0 | AE21: 0 | AF21: 0 | AG21: =Z21+AE21/100+AF21/100 -> 0 | AI21: 4 | AJ21: =IF(Z21=0,"",IF($AH$18=AI21,$Y$18,IF($AH$19=AI21,$Y$19,IF($AH$20=AI21,$Y$20,IF($AH$21=AI21,$Y$21))))) -> 
C22: C | D22: 1 | E22: 15 | F22: =F19+$B$4 -> 14:00:00 | G22: 2 | H22: T / 3 | I22: / | J22: ='TAB 16 PS PRINC'!C29 -> T / 11 | K22: 0 | L22: / | M22: 0 | Y22: D
C23: D | D23: 1 | E23: 16 | F23: =F22+$B$4 -> 14:50:00 | G23: 2 | H23: T / 4 | I23: / | J23: ='TAB 16 PS PRINC'!C36 -> T /12 | K23: 0 | L23: / | M23: 0 | Y23: ='TAB 16 PS PRINC'!C34 -> T / 4 | Z23: =COUNTIF(PLACE1,Y23)*2+COUNTIF(PLACE2,Y23) -> 0 | AA23: =SUMIF(LISTEE1,Y23,(SCEQ1))+SUMIF(LISTEE2,Y23,(SCEQ2)) -> 0 | AB23: =SUMIF(LISTEE1,Y23,SCEQ2)+SUMIF(LISTEE2,Y23,SCEQ1) -> 0 | AC23: =(SUMPRODUCT((LISTEE1=Y23)*((S1EQ1)+(S2EQ1)+(S3EQ1))))+(SUMPRODUCT((LISTEE2=Y23)*((S1EQ2)+(S2EQ2)+(S3EQ3)))) -> 0 | AD23: =(SUMPRODUCT((LISTEE2=Y23)*((S1EQ1)+(S2EQ1)+(S3EQ1))))+(SUMPRODUCT((LISTEE1=Y23)*((S1EQ2)+(S2EQ2)+(S3EQ3)))) -> 0 | AE23: 0 | AF23: 0 | AG23: 0 | AH23: =IF(Z23=0,"",RANK(AG23,$AG$23:$AG$26)) ->  | AI23: 1 | AJ23: =IF(Z23=0,"",IF($AH$23=AI23,$Y$23,IF($AH$24=AI23,$Y$24,IF($AH$25=AI23,$Y$25,IF($AH$26=AI23,$Y$26))))) -> 
C24: A | D24: 1 | E24: 17 | F24: =F21+$B$4 -> 15:40:00 | G24: 1 | H24: ='TAB 16 PS PRINC'!C15 -> T / 9 | I24: / | J24: ='TAB 16 PS PRINC'!C16 -> T / 16 | K24: 0 | L24: / | M24: 0 | Y24: ='TAB 16 PS PRINC'!C35 -> T / 5 | Z24: =COUNTIF(PLACE1,Y24)*2+COUNTIF(PLACE2,Y24) -> 0 | AA24: =SUMIF(LISTEE1,Y24,(SCEQ1))+SUMIF(LISTEE2,Y24,(SCEQ2)) -> 0 | AB24: =SUMIF(LISTEE1,Y24,SCEQ2)+SUMIF(LISTEE2,Y24,SCEQ1) -> 0 | AC24: =(SUMPRODUCT((LISTEE1=Y24)*((S1EQ1)+(S2EQ1)+(S3EQ1))))+(SUMPRODUCT((LISTEE2=Y24)*((S1EQ2)+(S2EQ2)+(S3EQ3)))) -> 0 | AD24: =(SUMPRODUCT((LISTEE2=Y24)*((S1EQ1)+(S2EQ1)+(S3EQ1))))+(SUMPRODUCT((LISTEE1=Y24)*((S1EQ2)+(S2EQ2)+(S3EQ3)))) -> 0 | AE24: 0 | AF24: 0 | AG24: 0 | AH24: =IF(Z24=0,"",RANK(AG24,$AG$23:$AG$26)) ->  | AI24: 2 | AJ24: =IF(Z24=0,"",IF($AH$23=AI24,$Y$23,IF($AH$24=AI24,$Y$24,IF($AH$25=AI24,$Y$25,IF($AH$26=AI24,$Y$26))))) -> 
C25: B | D25: 1 | E25: 18 | F25: =F24+$B$4 -> 16:30:00 | G25: 1 | H25: ='TAB 16 PS PRINC'!C22 -> T / 10 | I25: / | J25: ='TAB 16 PS PRINC'!C23 -> T / 15 | K25: 0 | L25: / | M25: 0 | Y25: ='TAB 16 PS PRINC'!C36 -> T /12 | Z25: =COUNTIF(PLACE1,Y25)*2+COUNTIF(PLACE2,Y25) -> 0 | AA25: =SUMIF(LISTEE1,Y25,(SCEQ1))+SUMIF(LISTEE2,Y25,(SCEQ2)) -> 0 | AB25: =SUMIF(LISTEE1,Y25,SCEQ2)+SUMIF(LISTEE2,Y25,SCEQ1) -> 0 | AC25: =(SUMPRODUCT((LISTEE1=Y25)*((S1EQ1)+(S2EQ1)+(S3EQ1))))+(SUMPRODUCT((LISTEE2=Y25)*((S1EQ2)+(S2EQ2)+(S3EQ3)))) -> 0 | AD25: =(SUMPRODUCT((LISTEE2=Y25)*((S1EQ1)+(S2EQ1)+(S3EQ1))))+(SUMPRODUCT((LISTEE1=Y25)*((S1EQ2)+(S2EQ2)+(S3EQ3)))) -> 0 | AE25: 0 | AF25: 0 | AG25: 0 | AI25: 3
C26: C | D26: 1 | E26: 19 | F26: =F23+$B$4 -> 15:40:00 | G26: 2 | H26: ='TAB 16 PS PRINC'!C29 -> T / 11 | I26: / | J26: ='TAB 16 PS PRINC'!C30 -> T / 14 | K26: 0 | L26: / | M26: 0 | Y26: ='TAB 16 PS PRINC'!C37 -> T / 13 | Z26: =COUNTIF(PLACE1,Y26)*2+COUNTIF(PLACE2,Y26) -> 0 | AA26: =SUMIF(LISTEE1,Y26,(SCEQ1))+SUMIF(LISTEE2,Y26,(SCEQ2)) -> 0 | AB26: =SUMIF(LISTEE1,Y26,SCEQ2)+SUMIF(LISTEE2,Y26,SCEQ1) -> 0 | AC26: =(SUMPRODUCT((LISTEE1=Y26)*((S1EQ1)+(S2EQ1)+(S3EQ1))))+(SUMPRODUCT((LISTEE2=Y26)*((S1EQ2)+(S2EQ2)+(S3EQ3)))) -> 0 | AD26: =(SUMPRODUCT((LISTEE2=Y26)*((S1EQ1)+(S2EQ1)+(S3EQ1))))+(SUMPRODUCT((LISTEE1=Y26)*((S1EQ2)+(S2EQ2)+(S3EQ3)))) -> 0 | AE26: 0 | AF26: 0 | AG26: 0 | AI26: 4 | AJ26: =IF(Z26=0,"",IF($AH$23=AI26,$Y$23,IF($AH$24=AI26,$Y$24,IF($AH$25=AI26,$Y$25,IF($AH$26=AI26,$Y$26))))) -> 
C27: D | D27: 1 | E27: 20 | F27: =F26+$B$4 -> 16:30:00 | G27: 2 | H27: ='TAB 16 PS PRINC'!C36 -> T /12 | I27: / | J27: ='TAB 16 PS PRINC'!C37 -> T / 13 | K27: 0 | L27: / | M27: 0 | T27: =IF(K27=M27,"",IF(K27>M27,H27,J27)) -> 
C28: A | D28: 1 | E28: 21 | F28: =F25+$B$4 -> 17:20:00 | G28: 1 | H28: ='TAB 16 PS Qualif'!C13 -> T / 1 | I28: / | J28: ='TAB 16 PS PRINC'!C14 -> T / 8 | K28: 0 | L28: / | M28: 0 | T28: =IF(K28=M28,"",IF(K28>M28,H28,J28)) -> 
C29: B | D29: 1 | E29: 22 | F29: =F28+$B$4 -> 18:10:00 | G29: 1 | H29: ='TAB 16 PS Qualif'!C20 -> T / 2 | I29: / | J29: ='TAB 16 PS PRINC'!C21 -> T / 7 | K29: 0 | L29: / | M29: 0
C30: C | D30: 1 | E30: 23 | F30: =F27+$B$4 -> 17:20:00 | G30: 2 | H30: ='TAB 16 PS Qualif'!C27 -> T / 3 | I30: / | J30: ='TAB 16 PS PRINC'!C28 -> T / 6 | K30: 0 | L30: / | M30: 0
C31: D | D31: 1 | E31: 24 | F31: =F30+$B$4 -> 18:10:00 | G31: 2 | H31: ='TAB 16 PS Qualif'!C34 -> T / 4 | I31: / | J31: ='TAB 16 PS PRINC'!C35 -> T / 5 | K31: 0 | L31: / | M31: 0
C32: BARR | D32: 1 | E32: 25 | F32: =F30+$B$4 -> 18:10:00 | G32: 1 | H32: =AJ19 ->  | I32: / | J32: =AJ25 ->  | K32: 0 | L32: / | M32: 0 | T32: =IF(K32=M32,"",IF(K32>M32,H32,J32)) -> 
C33: BARR | D33: 1 | E33: 26 | F33: =F31+$B$4 -> 19:00:00 | G33: 2 | H33: =AJ14 ->  | I33: / | J33: =AJ10 ->  | K33: 0 | L33: / | M33: 0 | T33: =IF(K33=M33,"",IF(K33>M33,H33,J33)) -> 
C34: BARR | D34: 1 | E34: 27 | F34: 19:00:00 | G34: 1 | H34: =AJ9 ->  | I34: / | J34: =AJ15 ->  | K34: 0 | L34: / | M34: 0
C35: BARR | D35: 1 | E35: 28 | F35: 19:50:00 | G35: 2 | H35: =AJ24 ->  | I35: / | J35: =AJ20 ->  | K35: 0 | L35: / | M35: 0
C36: 1/4 | D36: 1 | E36: 29 | F36: =B5 -> 09:00:00 | G36: 1 | H36: =AJ8 ->  | I36: / | J36: =IF(K32=M32,AJ19,T32) ->  | K36: 0 | L36: / | M36: 0
C37: 1/4 | D37: 1 | E37: 30 | F37: =F36 -> 09:00:00 | G37: 2 | H37: =AJ23 ->  | I37: / | J37: =IF(K33=M33,AJ14,T33) ->  | K37: 0 | L37: / | M37: 0
C38: 1/4 | D38: 1 | E38: 31 | F38: 09:50:00 | G38: 1 | H38: =AJ18 ->  | I38: / | J38: =IF(K34=M34,AJ9,T34) ->  | K38: 0 | L38: / | M38: 0
C39: 1/4 | D39: 1 | E39: 32 | F39: 09:50:00 | G39: 2 | H39: =AJ13 ->  | I39: / | J39: =IF(K35=M35,AJ24,T35) ->  | K39: 0 | L39: / | M39: 0
C40: 1/2 | D40: 1 | E40: 33 | F40: 10:40:00 | G40: 1 | H40: =T36 ->  | I40: / | J40: =T37 ->  | K40: 0 | L40: / | M40: 0
C41: 1/2 | D41: 1 | E41: 34 | F41: =F40+$B$4 -> 11:30:00 | G41: 1 | H41: =T39 ->  | I41: / | J41: =T38 ->  | K41: 0 | L41: / | M41: 0
C42: 3-4 | D42: 1 | E42: 35 | F42: 14:00:00 | G42: 1 | H42: =U40 ->  | I42: / | J42: =U41 ->  | K42: 0 | L42: / | M42: 0
C43: F | D43: 1 | E43: 36 | F43: =F42+$B$4 -> 14:50:00 | G43: 1 | H43: =T40 ->  | I43: / | J43: =T41 ->  | K43: 0 | L43: / | M43: 0

Sheet TAB 16 PS PRINC
F1: =IF('LISTE ENGAGES'!R3="",'LISTE ENGAGES'!Q3,'LISTE ENGAGES'!R3) -> APPELATION TOURNOI | N1: =IF('LISTE ENGAGES'!$R$10<>"",'LISTE ENGAGES'!$R$10,'LISTE ENGAGES'!$Q$10) -> ORGANISATEUR
F5: =IF('LISTE ENGAGES'!R4="",'LISTE ENGAGES'!Q4,'LISTE ENGAGES'!R4) -> LIEU | I5: =IF('LISTE ENGAGES'!R8="",'LISTE ENGAGES'!Q8,'LISTE ENGAGES'!R8) -> DATE FIN | K5: =IF('LISTE ENGAGES'!R9="",'LISTE ENGAGES'!Q9,'LISTE ENGAGES'!R9) -> GENRE
F6: =IF('LISTE ENGAGES'!R5="",'LISTE ENGAGES'!Q5,'LISTE ENGAGES'!R5) -> TYPE
F7: TABLEAU PRINCIPAL
C10: POULES | E10: RESULTATS | J10: CLASSEMENT POULE | L10: BARRAGES | N10: 1/4 FINALES | P10: 1/2 FINALES | R10: FINALES
D12: TS1-TS16 | E12: (1) | F12: =IF('SCORE PRIN'!K8='SCORE PRIN'!M8,"",CONCATENATE('SCORE PRIN'!K8," / ",'SCORE PRIN'!M8," (",'SCORE PRIN'!N8,"-",'SCORE PRIN'!O8,")(",'SCORE PRIN'!P8,"-",'SCORE PRIN'!Q8,")(",'SCORE PRIN'!R8,"-",'SCORE PRIN'!S8,")")) ->  | N12: =IF(J13="","A1",J13) -> A1
B13: T1 | C13: =CONCATENATE('EMARG M Tableau PRIN'!C9," / ",'EMARG M Tableau PRIN'!G9) -> T / 1 | D13: TS8-TS9 | E13: (5) | F13: =IF('SCORE PRIN'!K12='SCORE PRIN'!M12,"",CONCATENATE('SCORE PRIN'!K12," / ",'SCORE PRIN'!M12," (",'SCORE PRIN'!N12,"-",'SCORE PRIN'!O12,")(",'SCORE PRIN'!P12,"-",'SCORE PRIN'!Q12,")(",'SCORE PRIN'!R12,"-",'SCORE PRIN'!S12,")")) ->  | I13: 1 | J13: ='SCORE PRIN'!AJ8 -> 
A14: A | B14: T8 | C14: =CONCATENATE('EMARG M Tableau PRIN'!C16," / ",'EMARG M Tableau PRIN'!G16) -> T / 8 | D14: TS8-TS16 | E14: (9) | F14: =IF('SCORE PRIN'!K16='SCORE PRIN'!M16,"",CONCATENATE('SCORE PRIN'!K16," / ",'SCORE PRIN'!M16," (",'SCORE PRIN'!N16,"-",'SCORE PRIN'!O16,")(",'SCORE PRIN'!P16,"-",'SCORE PRIN'!Q16,")(",'SCORE PRIN'!R16,"-",'SCORE PRIN'!S16,")")) ->  | I14: 2 | J14: ='SCORE PRIN'!AJ9 ->  | L14: =IF(J36="","D3",J36) -> D3 | N14: (29) | P14: ='SCORE PRIN'!T36 -> 
B15: T9 | C15: =CONCATENATE('EMARG M Tableau PRIN'!C17," / ",'EMARG M Tableau PRIN'!G17) -> T / 9 | D15: TS1-TS9 | E15: (13) | F15: =IF('SCORE PRIN'!K20='SCORE PRIN'!M20,"",CONCATENATE('SCORE PRIN'!K20," / ",'SCORE PRIN'!M20," (",'SCORE PRIN'!N20,"-",'SCORE PRIN'!O20,")(",'SCORE PRIN'!P20,"-",'SCORE PRIN'!Q20,")(",'SCORE PRIN'!R20,"-",'SCORE PRIN'!S20,")")) ->  | I15: 3 | J15: ='SCORE PRIN'!AJ10 ->  | P15: =IF('SCORE PRIN'!K36='SCORE PRIN'!M36,"",CONCATENATE('SCORE PRIN'!K36," / ",'SCORE PRIN'!M36," (",'SCORE PRIN'!N36,"-",'SCORE PRIN'!O36,")(",'SCORE PRIN'!P36,"-",'SCORE PRIN'!Q36,")(",'SCORE PRIN'!R36,"-",'SCORE PRIN'!S36,")")) -> 
B16: T16 | C16: =CONCATENATE('EMARG M Tableau PRIN'!C24," / ",'EMARG M Tableau PRIN'!G24) -> T / 16 | D16: TS9-TS16 | E16: (17) | F16: =IF('SCORE PRIN'!K24='SCORE PRIN'!M24,"",CONCATENATE('SCORE PRIN'!K24," / ",'SCORE PRIN'!M24," (",'SCORE PRIN'!N24,"-",'SCORE PRIN'!O24,")(",'SCORE PRIN'!P24,"-",'SCORE PRIN'!Q24,")(",'SCORE PRIN'!R24,"-",'SCORE PRIN'!S24,")")) ->  | I16: 4 | J16: ='SCORE PRIN'!AJ11 ->  | N16: =J28 -> 
D17: TS1-TS8 | E17: (21) | F17: =IF('SCORE PRIN'!K28='SCORE PRIN'!M28,"",CONCATENATE('SCORE PRIN'!K28," / ",'SCORE PRIN'!M28," (",'SCORE PRIN'!N28,"-",'SCORE PRIN'!O28,")(",'SCORE PRIN'!P28,"-",'SCORE PRIN'!Q28,")(",'SCORE PRIN'!R28,"-",'SCORE PRIN'!S28,")")) ->  | L17: =IF(J28="","C2",J28) -> C2 | N17: =IF('SCORE PRIN'!K32='SCORE PRIN'!M32,"",CONCATENATE('SCORE PRIN'!K32," / ",'SCORE PRIN'!M32," (",'SCORE PRIN'!N32,"-",'SCORE PRIN'!O32,")(",'SCORE PRIN'!P32,"-",'SCORE PRIN'!Q32,")(",'SCORE PRIN'!R32,"-",'SCORE PRIN'!S32,")")) -> 
P18: (33) | R18: ='SCORE PRIN'!T40 -> 
D19: TS2-TS15 | E19: (2) | F19: =IF('SCORE PRIN'!K9='SCORE PRIN'!M9,"",CONCATENATE('SCORE PRIN'!K9," / ",'SCORE PRIN'!M9," (",'SCORE PRIN'!N9,"-",'SCORE PRIN'!O9,")(",'SCORE PRIN'!P9,"-",'SCORE PRIN'!Q9,")(",'SCORE PRIN'!R9,"-",'SCORE PRIN'!S9,")")) ->  | L19: =IF(J15="","A3",J15) -> A3 | R19: =IF('SCORE PRIN'!K40='SCORE PRIN'!M40,"",CONCATENATE('SCORE PRIN'!K40," / ",'SCORE PRIN'!M40," (",'SCORE PRIN'!N40,"-",'SCORE PRIN'!O40,")(",'SCORE PRIN'!P40,"-",'SCORE PRIN'!Q40,")(",'SCORE PRIN'!R40,"-",'SCORE PRIN'!S40,")")) -> 
B20: T2 | C20: =CONCATENATE('EMARG M Tableau PRIN'!C10," / ",'EMARG M Tableau PRIN'!G10) -> T / 2 | D20: TS7-TS10 | E20: (6) | F20: =IF('SCORE PRIN'!K13='SCORE PRIN'!M13,"",CONCATENATE('SCORE PRIN'!K13," / ",'SCORE PRIN'!M13," (",'SCORE PRIN'!N13,"-",'SCORE PRIN'!O13,")(",'SCORE PRIN'!P13,"-",'SCORE PRIN'!Q13,")(",'SCORE PRIN'!R13,"-",'SCORE PRIN'!S13,")")) ->  | I20: 1 | J20: ='SCORE PRIN'!AJ13 ->  | N20: =J21 -> 
A21: B | B21: T7 | C21: =CONCATENATE('EMARG M Tableau PRIN'!C15," / ",'EMARG M Tableau PRIN'!G15) -> T / 7 | D21: TS7-TS15 | E21: (10) | F21: =IF('SCORE PRIN'!K17='SCORE PRIN'!M17,"",CONCATENATE('SCORE PRIN'!K17," / ",'SCORE PRIN'!M17," (",'SCORE PRIN'!N17,"-",'SCORE PRIN'!O17,")(",'SCORE PRIN'!P17,"-",'SCORE PRIN'!Q17,")(",'SCORE PRIN'!R17,"-",'SCORE PRIN'!S17,")")) ->  | I21: 2 | J21: ='SCORE PRIN'!AJ14 -> 
B22: T10 | C22: =CONCATENATE('EMARG M Tableau PRIN'!C18," / ",'EMARG M Tableau PRIN'!G18) -> T / 10 | D22: TS2-TS10 | E22: (14) | F22: =IF('SCORE PRIN'!K21='SCORE PRIN'!M21,"",CONCATENATE('SCORE PRIN'!K21," / ",'SCORE PRIN'!M21," (",'SCORE PRIN'!N21,"-",'SCORE PRIN'!O21,")(",'SCORE PRIN'!P21,"-",'SCORE PRIN'!Q21,")(",'SCORE PRIN'!R21,"-",'SCORE PRIN'!S21,")")) ->  | I22: 3 | J22: ='SCORE PRIN'!AJ15 ->  | L22: =IF(J21="","B2",J21) -> B2 | N22: (30)
B23: T15 | C23: =CONCATENATE('EMARG M Tableau PRIN'!C23," / ",'EMARG M Tableau PRIN'!G23) -> T / 15 | D23: TS10-TS15 | E23: (18) | F23: =IF('SCORE PRIN'!K25='SCORE PRIN'!M25,"",CONCATENATE('SCORE PRIN'!K25," / ",'SCORE PRIN'!M25," (",'SCORE PRIN'!N25,"-",'SCORE PRIN'!O25,")(",'SCORE PRIN'!P25,"-",'SCORE PRIN'!Q25,")(",'SCORE PRIN'!R25,"-",'SCORE PRIN'!S25,")")) ->  | I23: 4 | J23: ='SCORE PRIN'!AJ16 ->  | P23: ='SCORE PRIN'!T37 -> 
D24: TS2-TS7 | E24: (22) | F24: =IF('SCORE PRIN'!K29='SCORE PRIN'!M29,"",CONCATENATE('SCORE PRIN'!K29," / ",'SCORE PRIN'!M29," (",'SCORE PRIN'!N29,"-",'SCORE PRIN'!O29,")(",'SCORE PRIN'!P29,"-",'SCORE PRIN'!Q29,")(",'SCORE PRIN'!R29,"-",'SCORE PRIN'!S29,")")) ->  | N24: =IF(J34="","D1",J34) -> D1 | P24: =IF('SCORE PRIN'!K37='SCORE PRIN'!M37,"",CONCATENATE('SCORE PRIN'!K37," / ",'SCORE PRIN'!M37," (",'SCORE PRIN'!N37,"-",'SCORE PRIN'!O37,")(",'SCORE PRIN'!P37,"-",'SCORE PRIN'!Q37,")(",'SCORE PRIN'!R37,"-",'SCORE PRIN'!S37,")")) -> 
N25: =IF('SCORE PRIN'!K33='SCORE PRIN'!M33,"",CONCATENATE('SCORE PRIN'!K33," / ",'SCORE PRIN'!M33," (",'SCORE PRIN'!N33,"-",'SCORE PRIN'!O33,")(",'SCORE PRIN'!P33,"-",'SCORE PRIN'!Q33,")(",'SCORE PRIN'!R33,"-",'SCORE PRIN'!S33,")")) ->  | S25: ='SCORE PRIN'!T43 -> 
D26: TS3-TS14 | E26: (3) | F26: =IF('SCORE PRIN'!K10='SCORE PRIN'!M10,"",CONCATENATE('SCORE PRIN'!K10," / ",'SCORE PRIN'!M10," (",'SCORE PRIN'!N10,"-",'SCORE PRIN'!O10,")(",'SCORE PRIN'!P10,"-",'SCORE PRIN'!Q10,")(",'SCORE PRIN'!R10,"-",'SCORE PRIN'!S10,")")) ->  | S26: =IF('SCORE PRIN'!K43='SCORE PRIN'!M43,"",CONCATENATE('SCORE PRIN'!K43," / ",'SCORE PRIN'!M43," (",'SCORE PRIN'!N43,"-",'SCORE PRIN'!O43,")(",'SCORE PRIN'!P43,"-",'SCORE PRIN'!Q43,")(",'SCORE PRIN'!R43,"-",'SCORE PRIN'!S43,")")) -> 
B27: T3 | C27: =CONCATENATE('EMARG M Tableau PRIN'!C11," / ",'EMARG M Tableau PRIN'!G11) -> T / 3 | D27: TS6-TS11 | E27: (7) | F27: =IF('SCORE PRIN'!K14='SCORE PRIN'!M14,"",CONCATENATE('SCORE PRIN'!K14," / ",'SCORE PRIN'!M14," (",'SCORE PRIN'!N14,"-",'SCORE PRIN'!O14,")(",'SCORE PRIN'!P14,"-",'SCORE PRIN'!Q14,")(",'SCORE PRIN'!R14,"-",'SCORE PRIN'!S14,")")) ->  | I27: 1 | J27: ='SCORE PRIN'!AJ18 ->  | N27: =IF(J27="","C1",J27) -> C1 | R27: (36)
A28: C | B28: T6 | C28: =CONCATENATE('EMARG M Tableau PRIN'!C14," / ",'EMARG M Tableau PRIN'!G14) -> T / 6 | D28: TS6-TS14 | E28: (11) | F28: =IF('SCORE PRIN'!K18='SCORE PRIN'!M18,"",CONCATENATE('SCORE PRIN'!K18," / ",'SCORE PRIN'!M18," (",'SCORE PRIN'!N18,"-",'SCORE PRIN'!O18,")(",'SCORE PRIN'!P18,"-",'SCORE PRIN'!Q18,")(",'SCORE PRIN'!R18,"-",'SCORE PRIN'!S18,")")) ->  | I28: 2 | J28: ='SCORE PRIN'!AJ19 -> 
B29: T11 | C29: =CONCATENATE('EMARG M Tableau PRIN'!C19," / ",'EMARG M Tableau PRIN'!G19) -> T / 11 | D29: TS3-TS11 | E29: (15) | F29: =IF('SCORE PRIN'!K22='SCORE PRIN'!M22,"",CONCATENATE('SCORE PRIN'!K22," / ",'SCORE PRIN'!M22," (",'SCORE PRIN'!N22,"-",'SCORE PRIN'!O22,")(",'SCORE PRIN'!P22,"-",'SCORE PRIN'!Q22,")(",'SCORE PRIN'!R22,"-",'SCORE PRIN'!S22,")")) ->  | I29: 3 | J29: ='SCORE PRIN'!AJ20 ->  | L29: =IF(J22="","B3",J22) -> B3 | N29: (31) | P29: ='SCORE PRIN'!T38 -> 
B30: T14 | C30: =CONCATENATE('EMARG M Tableau PRIN'!C22," / ",'EMARG M Tableau PRIN'!G22) -> T / 14 | D30: TS11-TS14 | E30: (19) | F30: =IF('SCORE PRIN'!K26='SCORE PRIN'!M26,"",CONCATENATE('SCORE PRIN'!K26," / ",'SCORE PRIN'!M26," (",'SCORE PRIN'!N26,"-",'SCORE PRIN'!O26,")(",'SCORE PRIN'!P26,"-",'SCORE PRIN'!Q26,")(",'SCORE PRIN'!R26,"-",'SCORE PRIN'!S26,")")) ->  | I30: 4 | J30: ='SCORE PRIN'!AJ21 ->  | P30: =IF('SCORE PRIN'!K38='SCORE PRIN'!M38,"",CONCATENATE('SCORE PRIN'!K38," / ",'SCORE PRIN'!M38," (",'SCORE PRIN'!N38,"-",'SCORE PRIN'!O38,")(",'SCORE PRIN'!P38,"-",'SCORE PRIN'!Q38,")(",'SCORE PRIN'!R38,"-",'SCORE PRIN'!S38,")")) -> 
D31: TS3-TS6 | E31: (23) | F31: =IF('SCORE PRIN'!K30='SCORE PRIN'!M30,"",CONCATENATE('SCORE PRIN'!K30," / ",'SCORE PRIN'!M30," (",'SCORE PRIN'!N30,"-",'SCORE PRIN'!O30,")(",'SCORE PRIN'!P30,"-",'SCORE PRIN'!Q30,")(",'SCORE PRIN'!R30,"-",'SCORE PRIN'!S30,")")) ->  | N31: =J14 -> 
L32: =IF(J14="","A2",J14) -> A2 | N32: =IF('SCORE PRIN'!K34='SCORE PRIN'!M34,"",CONCATENATE('SCORE PRIN'!K34," / ",'SCORE PRIN'!M34," (",'SCORE PRIN'!N34,"-",'SCORE PRIN'!O34,")(",'SCORE PRIN'!P34,"-",'SCORE PRIN'!Q34,")(",'SCORE PRIN'!R34,"-",'SCORE PRIN'!S34,")")) -> 
D33: TS4-TS13 | E33: (4) | F33: =IF('SCORE PRIN'!K11='SCORE PRIN'!M11,"",CONCATENATE('SCORE PRIN'!K11," / ",'SCORE PRIN'!M11," (",'SCORE PRIN'!N11,"-",'SCORE PRIN'!O11,")(",'SCORE PRIN'!P11,"-",'SCORE PRIN'!Q11,")(",'SCORE PRIN'!R11,"-",'SCORE PRIN'!S11,")")) ->  | P33: (34) | R33: ='SCORE PRIN'!T41 -> 
B34: T4 | C34: =CONCATENATE('EMARG M Tableau PRIN'!C12," / ",'EMARG M Tableau PRIN'!G12) -> T / 4 | D34: TS5-TS12 | E34: (8) | F34: =IF('SCORE PRIN'!K15='SCORE PRIN'!M15,"",CONCATENATE('SCORE PRIN'!K15," / ",'SCORE PRIN'!M15," (",'SCORE PRIN'!N15,"-",'SCORE PRIN'!O15,")(",'SCORE PRIN'!P15,"-",'SCORE PRIN'!Q15,")(",'SCORE PRIN'!R15,"-",'SCORE PRIN'!S15,")")) ->  | I34: 1 | J34: ='SCORE PRIN'!AJ23 ->  | L34: =IF(J35="","D2",J35) -> D2 | R34: =IF('SCORE PRIN'!K41='SCORE PRIN'!M41,"",CONCATENATE('SCORE PRIN'!K41," / ",'SCORE PRIN'!M41," (",'SCORE PRIN'!N41,"-",'SCORE PRIN'!O41,")(",'SCORE PRIN'!P41,"-",'SCORE PRIN'!Q41,")(",'SCORE PRIN'!R41,"-",'SCORE PRIN'!S41,")")) -> 
A35: D | B35: T5 | C35: =CONCATENATE('EMARG M Tableau PRIN'!C13," / ",'EMARG M Tableau PRIN'!G13) -> T / 5 | D35: TS5-TS13 | E35: (12) | F35: =IF('SCORE PRIN'!K19='SCORE PRIN'!M19,"",CONCATENATE('SCORE PRIN'!K19," / ",'SCORE PRIN'!M19," (",'SCORE PRIN'!N19,"-",'SCORE PRIN'!O19,")(",'SCORE PRIN'!P19,"-",'SCORE PRIN'!Q19,")(",'SCORE PRIN'!R19,"-",'SCORE PRIN'!S19,")")) ->  | I35: 2 | J35: ='SCORE PRIN'!AJ24 ->  | N35: =J35 -> 
B36: T12 | C36: =CONCATENATE('EMARG M Tableau PRIN'!C20," /",'EMARG M Tableau PRIN'!G20) -> T /12 | D36: TS4-TS12 | E36: (16) | F36: =IF('SCORE PRIN'!K23='SCORE PRIN'!M23,"",CONCATENATE('SCORE PRIN'!K23," / ",'SCORE PRIN'!M23," (",'SCORE PRIN'!N23,"-",'SCORE PRIN'!O23,")(",'SCORE PRIN'!P23,"-",'SCORE PRIN'!Q23,")(",'SCORE PRIN'!R23,"-",'SCORE PRIN'!S23,")")) ->  | I36: 3 | J36: ='SCORE PRIN'!AJ25 ->  | N36: =IF('SCORE PRIN'!K35='SCORE PRIN'!M35,"",CONCATENATE('SCORE PRIN'!K35," / ",'SCORE PRIN'!M35," (",'SCORE PRIN'!N35,"-",'SCORE PRIN'!O35,")(",'SCORE PRIN'!P35,"-",'SCORE PRIN'!Q35,")(",'SCORE PRIN'!R35,"-",'SCORE PRIN'!S35,")")) -> 
B37: T13 | C37: =CONCATENATE('EMARG M Tableau PRIN'!C21," / ",'EMARG M Tableau PRIN'!G21) -> T / 13 | D37: TS12-TS13 | E37: (20) | F37: =IF('SCORE PRIN'!K27='SCORE PRIN'!M27,"",CONCATENATE('SCORE PRIN'!K27," / ",'SCORE PRIN'!M27," (",'SCORE PRIN'!N27,"-",'SCORE PRIN'!O27,")(",'SCORE PRIN'!P27,"-",'SCORE PRIN'!Q27,")(",'SCORE PRIN'!R27,"-",'SCORE PRIN'!S27,")")) ->  | I37: 4 | J37: ='SCORE PRIN'!AJ26 ->  | L37: =IF(J29="","C3",J29) -> C3 | N37: (32) | P37: ='SCORE PRIN'!T39 -> 
D38: TS4-TS5 | E38: (24) | F38: =IF('SCORE PRIN'!K31='SCORE PRIN'!M31,"",CONCATENATE('SCORE PRIN'!K31," / ",'SCORE PRIN'!M31," (",'SCORE PRIN'!N31,"-",'SCORE PRIN'!O31,")(",'SCORE PRIN'!P31,"-",'SCORE PRIN'!Q31,")(",'SCORE PRIN'!R31,"-",'SCORE PRIN'!S31,")")) ->  | P38: =IF('SCORE PRIN'!K39='SCORE PRIN'!M39,"",CONCATENATE('SCORE PRIN'!K39," / ",'SCORE PRIN'!M39," (",'SCORE PRIN'!N39,"-",'SCORE PRIN'!O39,")(",'SCORE PRIN'!P39,"-",'SCORE PRIN'!Q39,")(",'SCORE PRIN'!R39,"-",'SCORE PRIN'!S39,")")) -> 
N39: =IF(J20="","B1",J20) -> B1
R40: ='SCORE PRIN'!U40 -> 
R42: (35) | S42: ='SCORE PRIN'!T42 -> 
S43: =IF('SCORE PRIN'!K42='SCORE PRIN'!M42,"",CONCATENATE('SCORE PRIN'!K42," / ",'SCORE PRIN'!M42," (",'SCORE PRIN'!N42,"-",'SCORE PRIN'!O42,")(",'SCORE PRIN'!P42,"-",'SCORE PRIN'!Q42,")(",'SCORE PRIN'!R42,"-",'SCORE PRIN'!S42,")")) -> 
R45: ='SCORE PRIN'!U41 -> 

Sheet RELEVE
C1: RELEVE DES RESULTATS ET SANCTIONS - TOURNOI DE BEACH VOLLEY
C3: APPELATION DU TOURNOI | E3: =IF('LISTE ENGAGES'!R3="","",'LISTE ENGAGES'!R3) -> 
C4: TYPE | E4: =IF('LISTE ENGAGES'!R5="","",'LISTE ENGAGES'!R5) -> 
C5: GENRE | E5: =IF('LISTE ENGAGES'!R9="","",'LISTE ENGAGES'!R9) -> 
C6: DATE | E6: =IF('LISTE ENGAGES'!R7="","",CONCATENATE('LISTE ENGAGES'!R7,"-",'LISTE ENGAGES'!R8,"/",'LISTE ENGAGES'!R6)) -> 
C7: ORGANISATEUR | E7: =IF('LISTE ENGAGES'!R10="","",'LISTE ENGAGES'!R10) -> 
C9: NOMBRE EQUIPE TABLEAU : | F9: PRINCIPAL | I9: QUALIFICATION
C10: NOMBRE EQUIPE PRESENTES PAR TABLEAU | F10: PRINCIPAL | I10: QUALIFICATION
C13: COMPOSITION DE LA COMMISSION DE DIRECTION
C15: DELEGUE INSTANCE FEDERAL
C16: SUPERVISEUR
C17: JUGE ARBITRE
C18: ORGANISATEUR
C19: REPRESENTANT JOUEURS
C20: RAPPORTEUR*
C26: EQUIPES ABSENTES
C27: NOM | D27: PRENOM | E27: LIC J1 | F27: club J1 | G27: NOM2 | H27: PRENOM3 | I27: LIC J2 | J27: club J2
C34: RECLAMATIONS
C35: NOM | D35: PRENOM | E35: LIC J1 | F35: club J1 | G35: NOM2 | H35: PRENOM3 | I35: LIC J2 | J35: club J2 | K35: RANG | L35: NIVEAU | M35: MOTIF | N35: AVIS COMMISSION
B36: 1
B37: 2
B38: 3
B39: 4
B40: 5
B41: 6
C43: EQUIPES/JOUEURS SANCTIONNES
C44: NOM | D44: PRENOM | E44: LIC J1 | F44: club J1 | G44: NOM2 | H44: PRENOM3 | I44: LIC J2 | J44: club J2 | K44: RANG | L44: SANCTION | M44: MOTIF | N44: AVIS COMMISSION
B45: 1
B46: 2
B47: 3
B48: 4
B49: 5
B50: 6
C52: CLASSEMENT FINAL
C53: NOM | D53: PRENOM | E53: LIC J1 | F53: club J1 | G53: NOM2 | H53: PRENOM3 | I53: LIC J2 | J53: club J2 | K53: RANG
C54: =IF('LISTE ENGAGES'!C9="","",'LISTE ENGAGES'!C9) ->  | D54: =IF('LISTE ENGAGES'!D9="","",'LISTE ENGAGES'!D9) ->  | E54: =IF('LISTE ENGAGES'!E9="","",'LISTE ENGAGES'!E9) ->  | F54: =IF('LISTE ENGAGES'!F9="","",'LISTE ENGAGES'!F9) ->  | G54: =IF('LISTE ENGAGES'!G9="","",'LISTE ENGAGES'!G9) ->  | H54: =IF('LISTE ENGAGES'!H9="","",'LISTE ENGAGES'!H9) ->  | I54: =IF('LISTE ENGAGES'!I9="","",'LISTE ENGAGES'!I9) ->  | J54: =IF('LISTE ENGAGES'!J9="","",'LISTE ENGAGES'!J9) -> 
C55: =IF('LISTE ENGAGES'!C10="","",'LISTE ENGAGES'!C10) ->  | D55: =IF('LISTE ENGAGES'!D10="","",'LISTE ENGAGES'!D10) ->  | E55: =IF('LISTE ENGAGES'!E10="","",'LISTE ENGAGES'!E10) ->  | F55: =IF('LISTE ENGAGES'!F10="","",'LISTE ENGAGES'!F10) ->  | G55: =IF('LISTE ENGAGES'!G10="","",'LISTE ENGAGES'!G10) ->  | H55: =IF('LISTE ENGAGES'!H10="","",'LISTE ENGAGES'!H10) ->  | I55: =IF('LISTE ENGAGES'!I10="","",'LISTE ENGAGES'!I10) ->  | J55: =IF('LISTE ENGAGES'!J10="","",'LISTE ENGAGES'!J10) -> 
C56: =IF('LISTE ENGAGES'!C11="","",'LISTE ENGAGES'!C11) ->  | D56: =IF('LISTE ENGAGES'!D11="","",'LISTE ENGAGES'!D11) ->  | E56: =IF('LISTE ENGAGES'!E11="","",'LISTE ENGAGES'!E11) ->  | F56: =IF('LISTE ENGAGES'!F11="","",'LISTE ENGAGES'!F11) ->  | G56: =IF('LISTE ENGAGES'!G11="","",'LISTE ENGAGES'!G11) ->  | H56: =IF('LISTE ENGAGES'!H11="","",'LISTE ENGAGES'!H11) ->  | I56: =IF('LISTE ENGAGES'!I11="","",'LISTE ENGAGES'!I11) ->  | J56: =IF('LISTE ENGAGES'!J11="","",'LISTE ENGAGES'!J11) -> 
C57: =IF('LISTE ENGAGES'!C12="","",'LISTE ENGAGES'!C12) ->  | D57: =IF('LISTE ENGAGES'!D12="","",'LISTE ENGAGES'!D12) ->  | E57: =IF('LISTE ENGAGES'!E12="","",'LISTE ENGAGES'!E12) ->  | F57: =IF('LISTE ENGAGES'!F12="","",'LISTE ENGAGES'!F12) ->  | G57: =IF('LISTE ENGAGES'!G12="","",'LISTE ENGAGES'!G12) ->  | H57: =IF('LISTE ENGAGES'!H12="","",'LISTE ENGAGES'!H12) ->  | I57: =IF('LISTE ENGAGES'!I12="","",'LISTE ENGAGES'!I12) ->  | J57: =IF('LISTE ENGAGES'!J12="","",'LISTE ENGAGES'!J12) -> 
C58: =IF('LISTE ENGAGES'!C13="","",'LISTE ENGAGES'!C13) ->  | D58: =IF('LISTE ENGAGES'!D13="","",'LISTE ENGAGES'!D13) ->  | E58: =IF('LISTE ENGAGES'!E13="","",'LISTE ENGAGES'!E13) ->  | F58: =IF('LISTE ENGAGES'!F13="","",'LISTE ENGAGES'!F13) ->  | G58: =IF('LISTE ENGAGES'!G13="","",'LISTE ENGAGES'!G13) ->  | H58: =IF('LISTE ENGAGES'!H13="","",'LISTE ENGAGES'!H13) ->  | I58: =IF('LISTE ENGAGES'!I13="","",'LISTE ENGAGES'!I13) ->  | J58: =IF('LISTE ENGAGES'!J13="","",'LISTE ENGAGES'!J13) -> 
C59: =IF('LISTE ENGAGES'!C14="","",'LISTE ENGAGES'!C14) ->  | D59: =IF('LISTE ENGAGES'!D14="","",'LISTE ENGAGES'!D14) ->  | E59: =IF('LISTE ENGAGES'!E14="","",'LISTE ENGAGES'!E14) ->  | F59: =IF('LISTE ENGAGES'!F14="","",'LISTE ENGAGES'!F14) ->  | G59: =IF('LISTE ENGAGES'!G14="","",'LISTE ENGAGES'!G14) ->  | H59: =IF('LISTE ENGAGES'!H14="","",'LISTE ENGAGES'!H14) ->  | I59: =IF('LISTE ENGAGES'!I14="","",'LISTE ENGAGES'!I14) ->  | J59: =IF('LISTE ENGAGES'!J14="","",'LISTE ENGAGES'!J14) -> 
C60: =IF('LISTE ENGAGES'!C15="","",'LISTE ENGAGES'!C15) ->  | D60: =IF('LISTE ENGAGES'!D15="","",'LISTE ENGAGES'!D15) ->  | E60: =IF('LISTE ENGAGES'!E15="","",'LISTE ENGAGES'!E15) ->  | F60: =IF('LISTE ENGAGES'!F15="","",'LISTE ENGAGES'!F15) ->  | G60: =IF('LISTE ENGAGES'!G15="","",'LISTE ENGAGES'!G15) ->  | H60: =IF('LISTE ENGAGES'!H15="","",'LISTE ENGAGES'!H15) ->  | I60: =IF('LISTE ENGAGES'!I15="","",'LISTE ENGAGES'!I15) ->  | J60: =IF('LISTE ENGAGES'!J15="","",'LISTE ENGAGES'!J15) -> 
C61: =IF('LISTE ENGAGES'!C16="","",'LISTE ENGAGES'!C16) ->  | D61: =IF('LISTE ENGAGES'!D16="","",'LISTE ENGAGES'!D16) ->  | E61: =IF('LISTE ENGAGES'!E16="","",'LISTE ENGAGES'!E16) ->  | F61: =IF('LISTE ENGAGES'!F16="","",'LISTE ENGAGES'!F16) ->  | G61: =IF('LISTE ENGAGES'!G16="","",'LISTE ENGAGES'!G16) ->  | H61: =IF('LISTE ENGAGES'!H16="","",'LISTE ENGAGES'!H16) ->  | I61: =IF('LISTE ENGAGES'!I16="","",'LISTE ENGAGES'!I16) ->  | J61: =IF('LISTE ENGAGES'!J16="","",'LISTE ENGAGES'!J16) -> 
C62: =IF('LISTE ENGAGES'!C17="","",'LISTE ENGAGES'!C17) ->  | D62: =IF('LISTE ENGAGES'!D17="","",'LISTE ENGAGES'!D17) ->  | E62: =IF('LISTE ENGAGES'!E17="","",'LISTE ENGAGES'!E17) ->  | F62: =IF('LISTE ENGAGES'!F17="","",'LISTE ENGAGES'!F17) ->  | G62: =IF('LISTE ENGAGES'!G17="","",'LISTE ENGAGES'!G17) ->  | H62: =IF('LISTE ENGAGES'!H17="","",'LISTE ENGAGES'!H17) ->  | I62: =IF('LISTE ENGAGES'!I17="","",'LISTE ENGAGES'!I17) ->  | J62: =IF('LISTE ENGAGES'!J17="","",'LISTE ENGAGES'!J17) -> 
C63: =IF('LISTE ENGAGES'!C18="","",'LISTE ENGAGES'!C18) ->  | D63: =IF('LISTE ENGAGES'!D18="","",'LISTE ENGAGES'!D18) ->  | E63: =IF('LISTE ENGAGES'!E18="","",'LISTE ENGAGES'!E18) ->  | F63: =IF('LISTE ENGAGES'!F18="","",'LISTE ENGAGES'!F18) ->  | G63: =IF('LISTE ENGAGES'!G18="","",'LISTE ENGAGES'!G18) ->  | H63: =IF('LISTE ENGAGES'!H18="","",'LISTE ENGAGES'!H18) ->  | I63: =IF('LISTE ENGAGES'!I18="","",'LISTE ENGAGES'!I18) ->  | J63: =IF('LISTE ENGAGES'!J18="","",'LISTE ENGAGES'!J18) -> 
C64: =IF('LISTE ENGAGES'!C19="","",'LISTE ENGAGES'!C19) ->  | D64: =IF('LISTE ENGAGES'!D19="","",'LISTE ENGAGES'!D19) ->  | E64: =IF('LISTE ENGAGES'!E19="","",'LISTE ENGAGES'!E19) ->  | F64: =IF('LISTE ENGAGES'!F19="","",'LISTE ENGAGES'!F19) ->  | G64: =IF('LISTE ENGAGES'!G19="","",'LISTE ENGAGES'!G19) ->  | H64: =IF('LISTE ENGAGES'!H19="","",'LISTE ENGAGES'!H19) ->  | I64: =IF('LISTE ENGAGES'!I19="","",'LISTE ENGAGES'!I19) ->  | J64: =IF('LISTE ENGAGES'!J19="","",'LISTE ENGAGES'!J19) -> 
C65: =IF('LISTE ENGAGES'!C20="","",'LISTE ENGAGES'!C20) ->  | D65: =IF('LISTE ENGAGES'!D20="","",'LISTE ENGAGES'!D20) ->  | E65: =IF('LISTE ENGAGES'!E20="","",'LISTE ENGAGES'!E20) ->  | F65: =IF('LISTE ENGAGES'!F20="","",'LISTE ENGAGES'!F20) ->  | G65: =IF('LISTE ENGAGES'!G20="","",'LISTE ENGAGES'!G20) ->  | H65: =IF('LISTE ENGAGES'!H20="","",'LISTE ENGAGES'!H20) ->  | I65: =IF('LISTE ENGAGES'!I20="","",'LISTE ENGAGES'!I20) ->  | J65: =IF('LISTE ENGAGES'!J20="","",'LISTE ENGAGES'!J20) -> 
C66: =IF('LISTE ENGAGES'!C21="","",'LISTE ENGAGES'!C21) ->  | D66: =IF('LISTE ENGAGES'!D21="","",'LISTE ENGAGES'!D21) ->  | E66: =IF('LISTE ENGAGES'!E21="","",'LISTE ENGAGES'!E21) ->  | F66: =IF('LISTE ENGAGES'!F21="","",'LISTE ENGAGES'!F21) ->  | G66: =IF('LISTE ENGAGES'!G21="","",'LISTE ENGAGES'!G21) ->  | H66: =IF('LISTE ENGAGES'!H21="","",'LISTE ENGAGES'!H21) ->  | I66: =IF('LISTE ENGAGES'!I21="","",'LISTE ENGAGES'!I21) ->  | J66: =IF('LISTE ENGAGES'!J21="","",'LISTE ENGAGES'!J21) -> 
C67: =IF('LISTE ENGAGES'!C22="","",'LISTE ENGAGES'!C22) ->  | D67: =IF('LISTE ENGAGES'!D22="","",'LISTE ENGAGES'!D22) ->  | E67: =IF('LISTE ENGAGES'!E22="","",'LISTE ENGAGES'!E22) ->  | F67: =IF('LISTE ENGAGES'!F22="","",'LISTE ENGAGES'!F22) ->  | G67: =IF('LISTE ENGAGES'!G22="","",'LISTE ENGAGES'!G22) ->  | H67: =IF('LISTE ENGAGES'!H22="","",'LISTE ENGAGES'!H22) ->  | I67: =IF('LISTE ENGAGES'!I22="","",'LISTE ENGAGES'!I22) ->  | J67: =IF('LISTE ENGAGES'!J22="","",'LISTE ENGAGES'!J22) -> 
C68: =IF('LISTE ENGAGES'!C23="","",'LISTE ENGAGES'!C23) ->  | D68: =IF('LISTE ENGAGES'!D23="","",'LISTE ENGAGES'!D23) ->  | E68: =IF('LISTE ENGAGES'!E23="","",'LISTE ENGAGES'!E23) ->  | F68: =IF('LISTE ENGAGES'!F23="","",'LISTE ENGAGES'!F23) ->  | G68: =IF('LISTE ENGAGES'!G23="","",'LISTE ENGAGES'!G23) ->  | H68: =IF('LISTE ENGAGES'!H23="","",'LISTE ENGAGES'!H23) ->  | I68: =IF('LISTE ENGAGES'!I23="","",'LISTE ENGAGES'!I23) ->  | J68: =IF('LISTE ENGAGES'!J23="","",'LISTE ENGAGES'!J23) -> 
C69: =IF('LISTE ENGAGES'!C24="","",'LISTE ENGAGES'!C24) ->  | D69: =IF('LISTE ENGAGES'!D24="","",'LISTE ENGAGES'!D24) ->  | E69: =IF('LISTE ENGAGES'!E24="","",'LISTE ENGAGES'!E24) ->  | F69: =IF('LISTE ENGAGES'!F24="","",'LISTE ENGAGES'!F24) ->  | G69: =IF('LISTE ENGAGES'!G24="","",'LISTE ENGAGES'!G24) ->  | H69: =IF('LISTE ENGAGES'!H24="","",'LISTE ENGAGES'!H24) ->  | I69: =IF('LISTE ENGAGES'!I24="","",'LISTE ENGAGES'!I24) ->  | J69: =IF('LISTE ENGAGES'!J24="","",'LISTE ENGAGES'!J24) -> 
C70: =IF('LISTE ENGAGES'!C25="","",'LISTE ENGAGES'!C25) ->  | D70: =IF('LISTE ENGAGES'!D25="","",'LISTE ENGAGES'!D25) ->  | E70: =IF('LISTE ENGAGES'!E25="","",'LISTE ENGAGES'!E25) ->  | F70: =IF('LISTE ENGAGES'!F25="","",'LISTE ENGAGES'!F25) ->  | G70: =IF('LISTE ENGAGES'!G25="","",'LISTE ENGAGES'!G25) ->  | H70: =IF('LISTE ENGAGES'!H25="","",'LISTE ENGAGES'!H25) ->  | I70: =IF('LISTE ENGAGES'!I25="","",'LISTE ENGAGES'!I25) ->  | J70: =IF('LISTE ENGAGES'!J25="","",'LISTE ENGAGES'!J25) -> 
C71: =IF('LISTE ENGAGES'!C26="","",'LISTE ENGAGES'!C26) ->  | D71: =IF('LISTE ENGAGES'!D26="","",'LISTE ENGAGES'!D26) ->  | E71: =IF('LISTE ENGAGES'!E26="","",'LISTE ENGAGES'!E26) ->  | F71: =IF('LISTE ENGAGES'!F26="","",'LISTE ENGAGES'!F26) ->  | G71: =IF('LISTE ENGAGES'!G26="","",'LISTE ENGAGES'!G26) ->  | H71: =IF('LISTE ENGAGES'!H26="","",'LISTE ENGAGES'!H26) ->  | I71: =IF('LISTE ENGAGES'!I26="","",'LISTE ENGAGES'!I26) ->  | J71: =IF('LISTE ENGAGES'!J26="","",'LISTE ENGAGES'!J26) -> 
C72: =IF('LISTE ENGAGES'!C27="","",'LISTE ENGAGES'!C27) ->  | D72: =IF('LISTE ENGAGES'!D27="","",'LISTE ENGAGES'!D27) ->  | E72: =IF('LISTE ENGAGES'!E27="","",'LISTE ENGAGES'!E27) ->  | F72: =IF('LISTE ENGAGES'!F27="","",'LISTE ENGAGES'!F27) ->  | G72: =IF('LISTE ENGAGES'!G27="","",'LISTE ENGAGES'!G27) ->  | H72: =IF('LISTE ENGAGES'!H27="","",'LISTE ENGAGES'!H27) ->  | I72: =IF('LISTE ENGAGES'!I27="","",'LISTE ENGAGES'!I27) ->  | J72: =IF('LISTE ENGAGES'!J27="","",'LISTE ENGAGES'!J27) -> 
C73: =IF('LISTE ENGAGES'!C28="","",'LISTE ENGAGES'!C28) ->  | D73: =IF('LISTE ENGAGES'!D28="","",'LISTE ENGAGES'!D28) ->  | E73: =IF('LISTE ENGAGES'!E28="","",'LISTE ENGAGES'!E28) ->  | F73: =IF('LISTE ENGAGES'!F28="","",'LISTE ENGAGES'!F28) ->  | G73: =IF('LISTE ENGAGES'!G28="","",'LISTE ENGAGES'!G28) ->  | H73: =IF('LISTE ENGAGES'!H28="","",'LISTE ENGAGES'!H28) ->  | I73: =IF('LISTE ENGAGES'!I28="","",'LISTE ENGAGES'!I28) ->  | J73: =IF('LISTE ENGAGES'!J28="","",'LISTE ENGAGES'!J28) -> 
C74: =IF('LISTE ENGAGES'!C29="","",'LISTE ENGAGES'!C29) ->  | D74: =IF('LISTE ENGAGES'!D29="","",'LISTE ENGAGES'!D29) ->  | E74: =IF('LISTE ENGAGES'!E29="","",'LISTE ENGAGES'!E29) ->  | F74: =IF('LISTE ENGAGES'!F29="","",'LISTE ENGAGES'!F29) ->  | G74: =IF('LISTE ENGAGES'!G29="","",'LISTE ENGAGES'!G29) ->  | H74: =IF('LISTE ENGAGES'!H29="","",'LISTE ENGAGES'!H29) ->  | I74: =IF('LISTE ENGAGES'!I29="","",'LISTE ENGAGES'!I29) ->  | J74: =IF('LISTE ENGAGES'!J29="","",'LISTE ENGAGES'!J29) -> 
C75: =IF('LISTE ENGAGES'!C30="","",'LISTE ENGAGES'!C30) ->  | D75: =IF('LISTE ENGAGES'!D30="","",'LISTE ENGAGES'!D30) ->  | E75: =IF('LISTE ENGAGES'!E30="","",'LISTE ENGAGES'!E30) ->  | F75: =IF('LISTE ENGAGES'!F30="","",'LISTE ENGAGES'!F30) ->  | G75: =IF('LISTE ENGAGES'!G30="","",'LISTE ENGAGES'!G30) ->  | H75: =IF('LISTE ENGAGES'!H30="","",'LISTE ENGAGES'!H30) ->  | I75: =IF('LISTE ENGAGES'!I30="","",'LISTE ENGAGES'!I30) ->  | J75: =IF('LISTE ENGAGES'!J30="","",'LISTE ENGAGES'!J30) -> 
C76: =IF('LISTE ENGAGES'!C31="","",'LISTE ENGAGES'!C31) ->  | D76: =IF('LISTE ENGAGES'!D31="","",'LISTE ENGAGES'!D31) ->  | E76: =IF('LISTE ENGAGES'!E31="","",'LISTE ENGAGES'!E31) ->  | F76: =IF('LISTE ENGAGES'!F31="","",'LISTE ENGAGES'!F31) ->  | G76: =IF('LISTE ENGAGES'!G31="","",'LISTE ENGAGES'!G31) ->  | H76: =IF('LISTE ENGAGES'!H31="","",'LISTE ENGAGES'!H31) ->  | I76: =IF('LISTE ENGAGES'!I31="","",'LISTE ENGAGES'!I31) ->  | J76: =IF('LISTE ENGAGES'!J31="","",'LISTE ENGAGES'!J31) -> 
C77: =IF('LISTE ENGAGES'!C32="","",'LISTE ENGAGES'!C32) ->  | D77: =IF('LISTE ENGAGES'!D32="","",'LISTE ENGAGES'!D32) ->  | E77: =IF('LISTE ENGAGES'!E32="","",'LISTE ENGAGES'!E32) ->  | F77: =IF('LISTE ENGAGES'!F32="","",'LISTE ENGAGES'!F32) ->  | G77: =IF('LISTE ENGAGES'!G32="","",'LISTE ENGAGES'!G32) ->  | H77: =IF('LISTE ENGAGES'!H32="","",'LISTE ENGAGES'!H32) ->  | I77: =IF('LISTE ENGAGES'!I32="","",'LISTE ENGAGES'!I32) ->  | J77: =IF('LISTE ENGAGES'!J32="","",'LISTE ENGAGES'!J32) -> 
C78: =IF('LISTE ENGAGES'!C33="","",'LISTE ENGAGES'!C33) ->  | D78: =IF('LISTE ENGAGES'!D33="","",'LISTE ENGAGES'!D33) ->  | E78: =IF('LISTE ENGAGES'!E33="","",'LISTE ENGAGES'!E33) ->  | F78: =IF('LISTE ENGAGES'!F33="","",'LISTE ENGAGES'!F33) ->  | G78: =IF('LISTE ENGAGES'!G33="","",'LISTE ENGAGES'!G33) ->  | H78: =IF('LISTE ENGAGES'!H33="","",'LISTE ENGAGES'!H33) ->  | I78: =IF('LISTE ENGAGES'!I33="","",'LISTE ENGAGES'!I33) ->  | J78: =IF('LISTE ENGAGES'!J33="","",'LISTE ENGAGES'!J33) -> 
C79: =IF('LISTE ENGAGES'!C34="","",'LISTE ENGAGES'!C34) ->  | D79: =IF('LISTE ENGAGES'!D34="","",'LISTE ENGAGES'!D34) ->  | E79: =IF('LISTE ENGAGES'!E34="","",'LISTE ENGAGES'!E34) ->  | F79: =IF('LISTE ENGAGES'!F34="","",'LISTE ENGAGES'!F34) ->  | G79: =IF('LISTE ENGAGES'!G34="","",'LISTE ENGAGES'!G34) ->  | H79: =IF('LISTE ENGAGES'!H34="","",'LISTE ENGAGES'!H34) ->  | I79: =IF('LISTE ENGAGES'!I34="","",'LISTE ENGAGES'!I34) ->  | J79: =IF('LISTE ENGAGES'!J34="","",'LISTE ENGAGES'!J34) -> 
C88: REMARQUES :
C97: SIGNATURES :
